BodyName,ServiceAreaCategorisation,ServiceDivisionCategorisation,ExpensesType,Date,TransactionNumber,Amount,CapitalorRevenue,SupplierName
Peterborough City Council,Children's & Education Services - Children's Social Care,Children Looked After,Supplies and Services,01/08/2011,385477,-18755,REVENUE,Knossington Grange School Ltd
Peterborough City Council,Children's & Education Services - Children's Social Care,Children Looked After,Supplies and Services - Transfer Payments,01/08/2011,385499,3642.9,REVENUE,Five Rivers
Peterborough City Council,Children's & Education Services - Education,Non-School Funding,Supplies and Services,01/08/2011,385545,1462.58,REVENUE,Danwood Fin Svcs Ltd
Peterborough City Council,Children's & Education Services - Children's Social Care,Other Children's & Families Services,Employees,01/08/2011,387717,1024.32,REVENUE,Sanctuary Personnel Ltd
Peterborough City Council,Children's & Education Services - Children's Social Care,Other Children's & Families Services,Employees,01/08/2011,388192,1687.2,REVENUE,Care Recruitment UK Ltd
Peterborough City Council,Children's & Education Services - Children's Social Care,More than one Service Division,Employees,01/08/2011,388429,2086.92,REVENUE,Care Recruitment UK Ltd
Peterborough City Council,Children's & Education Services - Children's Social Care,Other Children's & Families Services,Employees,01/08/2011,388536,1687.2,REVENUE,Care Recruitment UK Ltd
Peterborough City Council,Children's & Education Services - Children's Social Care,More than one Service Division,Employees,01/08/2011,389157,2074.44,REVENUE,Care Recruitment UK Ltd
Peterborough City Council,Children's & Education Services - Children's Social Care,Other Children's & Families Services,Employees,01/08/2011,389195,1687.2,REVENUE,Care Recruitment UK Ltd
Peterborough City Council,Children's & Education Services - Children's Social Care,Children Looked After,Supplies and Services - Transfer Payments,01/08/2011,389467,3764.33,REVENUE,Five Rivers
Peterborough City Council,Children's & Education Services - Children's Social Care,Children Looked After,Supplies and Services - Transfer Payments,01/08/2011,389484,3216,REVENUE,Key2
Peterborough City Council,Children's & Education Services - Children's Social Care,Children Looked After,Supplies and Services - Transfer Payments,01/08/2011,389495,3216,REVENUE,Key2
Peterborough City Council,Children's & Education Services - Children's Social Care,Other Children's & Families Services,Employees,01/08/2011,389530,1280.4,REVENUE,Sanctuary Personnel Ltd
Peterborough City Council,Children's & Education Services - Children's Social Care,Family Support Services,Employees,01/08/2011,389982,1194,REVENUE,Movement 2
Peterborough City Council,Children's & Education Services - Children's Social Care,Other Children's & Families Services,Employees,01/08/2011,390001,1792.56,REVENUE,Sanctuary Personnel Ltd
Peterborough City Council,Children's & Education Services - Education,Non-School Funding,Supplies and Services,01/08/2011,390102,1849.9,REVENUE,Cool Milk at School Ltd
Peterborough City Council,Children's & Education Services - Children's Social Care,Children Looked After,Supplies and Services - Transfer Payments,01/08/2011,390780,3076.68,REVENUE,Fostering Options Ltd
Peterborough City Council,Children's & Education Services - Children's Social Care,Children Looked After,Supplies and Services - Transfer Payments,01/08/2011,390815,3076.68,REVENUE,Fostering Options Ltd
Peterborough City Council,Capital,Capital,Capital Pending Update to BS,01/08/2011,391830,56230.87,CAPITAL,Benchmark Contracts Ltd
Peterborough City Council,Children's & Education Services - Children's Social Care,Children Looked After,Supplies and Services - Transfer Payments,01/08/2011,391835,14614.33,REVENUE,Continuum Care & Educ. Group.
Peterborough City Council,Children's & Education Services - Children's Social Care,Children Looked After,Supplies and Services - Transfer Payments,01/08/2011,391837,11957.01,REVENUE,Continuum Care & Educ. Group.
Peterborough City Council,Children's & Education Services - Children's Social Care,Family Support Services,More than one Expenses Type,01/08/2011,391841,584.35,REVENUE,PAM Recruitment Ltd
Peterborough City Council,Children's & Education Services - Children's Social Care,Family Support Services,More than one Expenses Type,01/08/2011,391847,600.28,REVENUE,PAM Recruitment Ltd
Peterborough City Council,Children's & Education Services - Children's Social Care,Family Support Services,More than one Expenses Type,01/08/2011,391849,666.18,REVENUE,PAM Recruitment Ltd
Peterborough City Council,Children's & Education Services - Children's Social Care,Other Children's & Families Services,Employees,01/08/2011,391889,1731.6,REVENUE,Evergood Associates
Peterborough City Council,Children's & Education Services - Children's Social Care,Other Children's & Families Services,Employees,01/08/2011,391910,1280.4,REVENUE,Sanctuary Personnel Ltd
Peterborough City Council,Children's & Education Services - Children's Social Care,Family Support Services,Supplies and Services,01/08/2011,392035,817.56,REVENUE,Sahara Community Care Services
Peterborough City Council,Children's & Education Services - Children's Social Care,Family Support Services,Supplies and Services,01/08/2011,392037,558.1,REVENUE,Sahara Community Care Services
Peterborough City Council,Deficit/(Surplus) on Trading Undertakings,Trading Account Surpluses & Deficits,Supplies and Services,01/08/2011,392124,3633.84,REVENUE,Premier Decorators UK Ltd
Peterborough City Council,Children's & Education Services - Children's Social Care,Children Looked After,Supplies and Services - Transfer Payments,01/08/2011,392170,14142.9,REVENUE,Continuum Care & Educ. Group.
Peterborough City Council,Children's & Education Services - Children's Social Care,Family Support Services,Third Party Payments,01/08/2011,392640,40000,REVENUE,Caverstede Early Years Centre
Peterborough City Council,Children's & Education Services - Children's Social Care,Other Children's & Families Services,Employees,01/08/2011,392712,1776,REVENUE,Blue Group International Ltd
Peterborough City Council,Capital,Capital,Capital Pending Update to BS,01/08/2011,392797,10039.8,CAPITAL,CA Traffic Ltd
Peterborough City Council,Children's & Education Services - Children's Social Care,Family Support Services,Third Party Payments,01/08/2011,392804,26707.25,REVENUE,KIDS
Peterborough City Council,Capital,Capital,Capital Pending Update to BS,01/08/2011,392963,20961.6,CAPITAL,E.ON Energy
Peterborough City Council,Children's & Education Services - Education,Non-School Funding,Supplies and Services,01/08/2011,393088,25796,REVENUE,Wilds Lodge School
Peterborough City Council,Adult Social Care,Other Adult Services,Employees,01/08/2011,393092,8547.24,REVENUE,National Treatment Agency
Peterborough City Council,Children's & Education Services - Children's Social Care,More than one Service Division,Supplies and Services,01/08/2011,393103,1351,REVENUE,Redacted Personal Data
Peterborough City Council,"Cultural, Environmental and Planning Services",Economic Development,Employees,01/08/2011,393108,1512,REVENUE,Hays Specialist Recruitment Ltd
Peterborough City Council,Children's & Education Services - Children's Social Care,Other Children's & Families Services,Employees,01/08/2011,393114,1510.87,REVENUE,Sanctuary Personnel Ltd
Peterborough City Council,Children's & Education Services - Children's Social Care,Other Children's & Families Services,Employees,01/08/2011,393115,1549.28,REVENUE,Sanctuary Personnel Ltd
Peterborough City Council,Capital,Capital,Capital Pending Update to BS,01/08/2011,393134,4608,CAPITAL,Hyder Consulting (UK) Ltd
Peterborough City Council,Children's & Education Services - Children's Social Care,Support Services & Management Costs,Employees,01/08/2011,393142,958.8,REVENUE,SG Training Ltd
Peterborough City Council,"Cultural, Environmental and Planning Services","Cemetery, Crematorium & Mortuary Services",Supplies and Services,01/08/2011,393146,753,REVENUE,BE Event Hire
Peterborough City Council,Capital,Capital,Capital Pending Update to BS,01/08/2011,393151,3723.6,CAPITAL,AECOM Ltd
Peterborough City Council,Support Services,Support Services,Supplies and Services,01/08/2011,393153,10800,REVENUE,Peterborough United Football Club
Peterborough City Council,Support Services,Support Services,Premises,01/08/2011,393155,707.55,REVENUE,Beebys Ltd
Peterborough City Council,"Highways, Roads & Transport Services","Environmental, Safety & Routine Maintenance",Supplies and Services,01/08/2011,393161,6000,REVENUE,Trafficlink (UK) Ltd
Peterborough City Council,Children's & Education Services - Children's Social Care,Children Looked After,Supplies and Services,01/08/2011,393162,549,REVENUE,Partridge & Print Ltd
Peterborough City Council,Corporate & Democratic Core,Democratic Representation & Managemetn,Employees,01/08/2011,393179,870,REVENUE,TCPSS Services Ltd
Peterborough City Council,Children's & Education Services - Education,All Schools - apportion across sectors,Supplies and Services,01/08/2011,393187,1388.4,REVENUE,Learning Pool Limited
Peterborough City Council,Children's & Education Services - Children's Social Care,Children Looked After,Supplies and Services,01/08/2011,393198,1112,REVENUE,Redacted Personal Data
Peterborough City Council,Children's & Education Services - Education,Non-School Funding,Supplies and Services,01/08/2011,393199,16000,REVENUE,University of Nottingham
Peterborough City Council,Capital,Capital,Capital Pending Update to BS,01/08/2011,393205,1623.6,CAPITAL,Total Gas & Power Ltd
Peterborough City Council,Children's & Education Services - Children's Social Care,Family Support Services,Employees,01/08/2011,393215,1544.4,REVENUE,Cambridgeshire County Council
Peterborough City Council,Support Services,Support Services,Supplies and Services,01/08/2011,393216,5420.4,REVENUE,Serco Ltd
Peterborough City Council,"Cultural, Environmental and Planning Services",Planning Policy,Supplies and Services,01/08/2011,393217,1508.4,REVENUE,Serco Ltd
Peterborough City Council,Support Services,Support Services,Supplies and Services,01/08/2011,393219,24637.44,REVENUE,Serco Ltd
Peterborough City Council,Support Services,Support Services,Supplies and Services,01/08/2011,393220,934.38,REVENUE,Serco Ltd
Peterborough City Council,Support Services,Support Services,Supplies and Services,01/08/2011,393221,1440,REVENUE,Serco Ltd
Peterborough City Council,Support Services,Support Services,Supplies and Services,01/08/2011,393222,600,REVENUE,Serco Ltd
Peterborough City Council,Central Services to the Public,Elections,Supplies and Services,01/08/2011,393224,4570.8,REVENUE,Serco Ltd
Peterborough City Council,"Highways, Roads & Transport Services",Public Transport,Supplies and Services,01/08/2011,393225,6884.14,REVENUE,Serco Ltd
Peterborough City Council,Support Services,Support Services,Supplies and Services,01/08/2011,393226,16481.4,REVENUE,Serco Ltd
Peterborough City Council,"Highways, Roads & Transport Services","Transport planning, policy and strategy",Supplies and Services,01/08/2011,393228,1185.44,REVENUE,Serco Ltd
Peterborough City Council,Support Services,Support Services,Employees,01/08/2011,393233,1327.03,REVENUE,Venn Group Ltd
Peterborough City Council,Housing Services,Homelessness,Employees,01/08/2011,393234,593.1,REVENUE,Anne Corder Recruitment
Peterborough City Council,Housing Services,Homelessness,Employees,01/08/2011,393238,608.91,REVENUE,Anne Corder Recruitment
Peterborough City Council,Support Services,Support Services,Supplies and Services,01/08/2011,393244,2043.32,REVENUE,Phoenix Software Ltd
Peterborough City Council,Children's & Education Services - Education,Primary,Supplies and Services,01/08/2011,393257,2713,REVENUE,John Green
Peterborough City Council,Children's & Education Services - Children's Social Care,Children Looked After,More than one Expenses Type,01/08/2011,393264,9247.08,REVENUE,Lovell's Hall
Peterborough City Council,"Cultural, Environmental and Planning Services",Recreation & Sport,Supplies and Services,01/08/2011,393266,665.98,REVENUE,Triple SSS Limited
Peterborough City Council,Deficit/(Surplus) on Trading Undertakings,Trading Account Surpluses & Deficits,Supplies and Services,01/08/2011,393268,677.88,REVENUE,Brammer
Peterborough City Council,Capital,Capital,Capital Pending Update to BS,01/08/2011,393271,2488.19,CAPITAL,Mott Macdonald
Peterborough City Council,Children's & Education Services - Children's Social Care,Children Looked After,Supplies and Services - Transfer Payments,01/08/2011,393274,3216,REVENUE,Key2
Peterborough City Council,Children's & Education Services - Children's Social Care,Children Looked After,Supplies and Services - Transfer Payments,01/08/2011,393301,5283.5,REVENUE,Key2
Peterborough City Council,Children's & Education Services - Children's Social Care,Children Looked After,Supplies and Services - Transfer Payments,01/08/2011,393304,3216,REVENUE,Key2
Peterborough City Council,Children's & Education Services - Children's Social Care,Children Looked After,Supplies and Services - Transfer Payments,01/08/2011,393306,3216,REVENUE,Key2
Peterborough City Council,Children's & Education Services - Children's Social Care,Children Looked After,Supplies and Services - Transfer Payments,01/08/2011,393313,3216,REVENUE,Key2
Peterborough City Council,Children's & Education Services - Education,Non-School Funding,Supplies and Services,01/08/2011,393314,4500,REVENUE,Peterborough Provider Services
Peterborough City Council,"Cultural, Environmental and Planning Services",Economic Development,Employees,01/08/2011,393320,2158.92,REVENUE,Hays Specialist Recruitment Ltd
Peterborough City Council,Children's & Education Services - Children's Social Care,Children Looked After,Supplies and Services - Transfer Payments,01/08/2011,393321,2376,REVENUE,Key2
Peterborough City Council,"Highways, Roads & Transport Services","Transport planning, policy and strategy",Employees,01/08/2011,393325,1386,REVENUE,Hays Specialist Recruitment Ltd
Peterborough City Council,Support Services,Support Services,Employees,01/08/2011,393330,581.4,REVENUE,Sacco Mann Ltd
Peterborough City Council,"Cultural, Environmental and Planning Services",More than one Service Division,Supplies and Services,01/08/2011,393335,2520,REVENUE,The Wildlife Trust BCNP
Peterborough City Council,Capital,Capital,Capital Pending Update to BS,01/08/2011,393339,8850,CAPITAL,UK Power Networks (operations) Ltd
Peterborough City Council,"Highways, Roads & Transport Services",Street Lighting,Supplies and Services,01/08/2011,393341,589.2,REVENUE,UK Power Networks (operations) Ltd
Peterborough City Council,"Highways, Roads & Transport Services",Street Lighting,Supplies and Services,01/08/2011,393342,589.2,REVENUE,UK Power Networks (operations) Ltd
Peterborough City Council,Support Services,Support Services,Employees,01/08/2011,393343,943.81,REVENUE,Sacco Mann Ltd
Peterborough City Council,"Highways, Roads & Transport Services",Street Lighting,Supplies and Services,01/08/2011,393344,589.2,REVENUE,UK Power Networks (operations) Ltd
Peterborough City Council,"Highways, Roads & Transport Services",Street Lighting,Supplies and Services,01/08/2011,393345,2182.8,REVENUE,UK Power Networks (operations) Ltd
Peterborough City Council,"Cultural, Environmental and Planning Services",Recreation & Sport,Supplies and Services,01/08/2011,393361,669.76,REVENUE,Triple SSS Limited
Peterborough City Council,"Cultural, Environmental and Planning Services",Community Safety,Third Party Payments,01/08/2011,393364,9750,REVENUE,Cambridgeshire Constabulary
Peterborough City Council,Children's & Education Services - Education,Secondary,Supplies and Services,01/08/2011,393366,4468.46,REVENUE,IIC by Education (P'boro) Ltd
Peterborough City Council,Children's & Education Services - Children's Social Care,Children Looked After,Supplies and Services,01/08/2011,393379,22564,REVENUE,Knossington Grange School Ltd
Peterborough City Council,Children's & Education Services - Children's Social Care,Children Looked After,Supplies and Services - Transfer Payments,01/08/2011,393382,22564,REVENUE,Knossington Grange School Ltd
Peterborough City Council,Children's & Education Services - Children's Social Care,Children Looked After,Supplies and Services,01/08/2011,393383,22564,REVENUE,Knossington Grange School Ltd
Peterborough City Council,Children's & Education Services - Children's Social Care,Children Looked After,Supplies and Services,01/08/2011,393386,22564,REVENUE,Knossington Grange School Ltd
Peterborough City Council,Children's & Education Services - Education,Non-School Funding,Transport,01/08/2011,393399,3420,REVENUE,Grettons Coaches
Peterborough City Council,Children's & Education Services - Education,Non-School Funding,Transport,01/08/2011,393400,3690,REVENUE,Grettons Coaches
Peterborough City Council,Children's & Education Services - Education,Non-School Funding,Transport,01/08/2011,393401,3330,REVENUE,Grettons Coaches
Peterborough City Council,Children's & Education Services - Education,Non-School Funding,Transport,01/08/2011,393402,3312,REVENUE,Grettons Coaches
Peterborough City Council,Children's & Education Services - Education,Non-School Funding,Transport,01/08/2011,393403,3312,REVENUE,Grettons Coaches
Peterborough City Council,Children's & Education Services - Education,Non-School Funding,Transport,01/08/2011,393404,3515,REVENUE,Grettons Coaches
Peterborough City Council,Children's & Education Services - Education,Non-School Funding,Transport,01/08/2011,393405,3515,REVENUE,Grettons Coaches
Peterborough City Council,Children's & Education Services - Education,Non-School Funding,Transport,01/08/2011,393406,3743,REVENUE,Grettons Coaches
Peterborough City Council,Children's & Education Services - Education,Non-School Funding,Transport,01/08/2011,393412,777.6,REVENUE,King Cabz
Peterborough City Council,Children's & Education Services - Education,Non-School Funding,Transport,01/08/2011,393416,2553.6,REVENUE,King Cabz
Peterborough City Council,Children's & Education Services - Education,Non-School Funding,Transport,01/08/2011,393417,729.6,REVENUE,King Cabz
Peterborough City Council,Children's & Education Services - Children's Social Care,Other Children's & Families Services,Employees,01/08/2011,393423,1556.1,REVENUE,Evergood Associates
Peterborough City Council,Adult Social Care,Other Adult Services,Employees,01/08/2011,393424,4273.62,REVENUE,National Treatment Agency
Peterborough City Council,Children's & Education Services - Education,Secondary,Premises,01/08/2011,393429,806572.42,REVENUE,IIC by Education (P'boro) Ltd
Peterborough City Council,Children's & Education Services - Children's Social Care,Other Children's & Families Services,Third Party Payments,01/08/2011,393430,10000,REVENUE,Scope
Peterborough City Council,Children's & Education Services - Children's Social Care,Children Looked After,Supplies and Services,01/08/2011,393827,756,REVENUE,Redacted Personal Data
Peterborough City Council,Children's & Education Services - Children's Social Care,Other Children's & Families Services,Employees,01/08/2011,393828,1609.5,REVENUE,Care Recruitment UK Ltd
Peterborough City Council,Children's & Education Services - Children's Social Care,Other Children's & Families Services,Supplies and Services,01/08/2011,393829,1597.73,REVENUE,Social Support Limited
Peterborough City Council,Children's & Education Services - Children's Social Care,Other Children's & Families Services,Supplies and Services,01/08/2011,393830,1092,REVENUE,Social Support Limited
Peterborough City Council,Children's & Education Services - Children's Social Care,Other Children's & Families Services,Supplies and Services,01/08/2011,393831,1702,REVENUE,Social Support Limited
Peterborough City Council,More than one Service Area Category,More than one Service Division,More than one Expenses Type,01/08/2011,393832,5558.4,REVENUE,The Synergy Group
Peterborough City Council,Children's & Education Services - Children's Social Care,Other Children's & Families Services,Employees,01/08/2011,393858,1776,REVENUE,Blue Group International Ltd
Peterborough City Council,Children's & Education Services - Children's Social Care,Children Looked After,Supplies and Services,01/08/2011,393876,22564,REVENUE,Knossington Grange School Ltd
Peterborough City Council,Children's & Education Services - Children's Social Care,Children Looked After,Supplies and Services,01/08/2011,393880,22564,REVENUE,Knossington Grange School Ltd
Peterborough City Council,Children's & Education Services - Children's Social Care,Children Looked After,Supplies and Services,01/08/2011,393881,22564,REVENUE,Knossington Grange School Ltd
Peterborough City Council,Adult Social Care,Other Adult Services,Supplies and Services,01/08/2011,393885,866.48,REVENUE,Frontier Medical
Peterborough City Council,Adult Social Care,Other Adult Services,Supplies and Services,01/08/2011,393887,1881,REVENUE,Frontier Medical
Peterborough City Council,Support Services,Support Services,Supplies and Services,01/08/2011,393895,5940,REVENUE,Advanced Technologies International Ltd
Peterborough City Council,Deficit/(Surplus) on Trading Undertakings,Trading Account Surpluses & Deficits,Supplies and Services,01/08/2011,393897,823.2,REVENUE,Quality Plus Finishing Ltd
Peterborough City Council,Support Services,Support Services,Supplies and Services,01/08/2011,393932,1193.61,REVENUE,Signs Express
Peterborough City Council,"Cultural, Environmental and Planning Services","Cemetery, Crematorium & Mortuary Services",Premises,01/08/2011,393935,675.78,REVENUE,Yaboo Company Ltd T/a Wesley Music
Peterborough City Council,Deficit/(Surplus) on Trading Undertakings,Trading Account Surpluses & Deficits,Supplies and Services,01/08/2011,393943,503.47,REVENUE,Carillon Industrial Services Ltd
Peterborough City Council,Deficit/(Surplus) on Trading Undertakings,Trading Account Surpluses & Deficits,Supplies and Services,01/08/2011,393944,509.85,REVENUE,Carillon Industrial Services Ltd
Peterborough City Council,Support Services,Support Services,Supplies and Services,01/08/2011,393947,3280.8,REVENUE,Pinsent Masons
Peterborough City Council,Children's & Education Services - Children's Social Care,Children Looked After,Supplies and Services,01/08/2011,393948,7444,REVENUE,Eccles Hall School
Peterborough City Council,"Cultural, Environmental and Planning Services","Cemetery, Crematorium & Mortuary Services",Supplies and Services,01/08/2011,393957,826.25,REVENUE,Scribes Ltd
Peterborough City Council,Children's & Education Services - Children's Social Care,Children Looked After,Supplies and Services - Transfer Payments,01/08/2011,393958,18483.44,REVENUE,Young Options College Ltd
Peterborough City Council,Children's & Education Services - Children's Social Care,Children Looked After,Supplies and Services - Transfer Payments,01/08/2011,393959,16427.44,REVENUE,Young Options College Ltd
Peterborough City Council,Deficit/(Surplus) on Trading Undertakings,Trading Account Surpluses & Deficits,Supplies and Services,01/08/2011,393960,5418,REVENUE,Brammer
Peterborough City Council,Deficit/(Surplus) on Trading Undertakings,Trading Account Surpluses & Deficits,Supplies and Services,01/08/2011,393962,9288,REVENUE,Brammer
Peterborough City Council,"Cultural, Environmental and Planning Services",More than one Service Division,Supplies and Services,01/08/2011,393963,1860,REVENUE,The Wildlife Trust BCNP
Peterborough City Council,Children's & Education Services - Education,Secondary,More than one Expenses Type,01/08/2011,393964,6214.33,REVENUE,Carole Archer Educ.Consultancy Ltd
Peterborough City Council,Deficit/(Surplus) on Trading Undertakings,Trading Account Surpluses & Deficits,Supplies and Services,01/08/2011,393975,2580,REVENUE,Carter Jonas
Peterborough City Council,"Highways, Roads & Transport Services",Street Lighting,Supplies and Services,01/08/2011,393985,723.6,REVENUE,UK Power Networks (operations) Ltd
Peterborough City Council,Capital,Capital,Capital Pending Update to BS,01/08/2011,393987,40080,CAPITAL,Murray & Willis Ltd
Peterborough City Council,Children's & Education Services - Children's Social Care,Other Children's & Families Services,Employees,01/08/2011,393988,1690.13,REVENUE,Sanctuary Personnel Ltd
Peterborough City Council,Adult Social Care,Other Adult Services,Supplies and Services,01/08/2011,393989,3896.4,REVENUE,Frontier Medical
Peterborough City Council,Children's & Education Services - Children's Social Care,Children Looked After,Employees,01/08/2011,393993,8313.84,REVENUE,Jane Scannell Ltd
Peterborough City Council,Children's & Education Services - Education,Primary,Supplies and Services,01/08/2011,393994,580,REVENUE,Redacted Personal Data
Peterborough City Council,Children's & Education Services - Education,Secondary,Supplies and Services,01/08/2011,394039,18994.8,REVENUE,IIC by Education (P'boro) Ltd
Peterborough City Council,Children's & Education Services - Education,Non-School Funding,Transport,01/08/2011,394047,957.6,REVENUE,R T Enterprises Ltd T/A Royal Taxis
Peterborough City Council,Children's & Education Services - Education,Non-School Funding,Transport,01/08/2011,394048,820.8,REVENUE,R T Enterprises Ltd T/A Royal Taxis
Peterborough City Council,Children's & Education Services - Education,Non-School Funding,Transport,01/08/2011,394050,1114.8,REVENUE,R T Enterprises Ltd T/A Royal Taxis
Peterborough City Council,Children's & Education Services - Education,Non-School Funding,Transport,01/08/2011,394051,1296,REVENUE,Ash School Transport
Peterborough City Council,Children's & Education Services - Education,Non-School Funding,Transport,01/08/2011,394052,1188,REVENUE,Ash School Transport
Peterborough City Council,Children's & Education Services - Education,Non-School Funding,Transport,01/08/2011,394054,1368,REVENUE,Ash School Transport
Peterborough City Council,Children's & Education Services - Education,Non-School Funding,Transport,01/08/2011,394055,843.84,REVENUE,Ash School Transport
Peterborough City Council,Children's & Education Services - Education,Non-School Funding,Transport,01/08/2011,394056,1152,REVENUE,Ash School Transport
Peterborough City Council,Children's & Education Services - Education,Non-School Funding,Transport,01/08/2011,394057,771,REVENUE,Ash School Transport
Peterborough City Council,Children's & Education Services - Education,Non-School Funding,Transport,01/08/2011,394058,1482,REVENUE,Ash School Transport
Peterborough City Council,Children's & Education Services - Education,Non-School Funding,Transport,01/08/2011,394059,890.4,REVENUE,Ash School Transport
Peterborough City Council,Children's & Education Services - Education,Non-School Funding,Transport,01/08/2011,394060,864,REVENUE,Eames Minibuses
Peterborough City Council,Children's & Education Services - Education,Non-School Funding,Transport,01/08/2011,394061,2646,REVENUE,Eames Minibuses
Peterborough City Council,Children's & Education Services - Education,Non-School Funding,Transport,01/08/2011,394062,2173.5,REVENUE,Eames Minibuses
Peterborough City Council,Children's & Education Services - Education,Non-School Funding,Transport,01/08/2011,394063,1254,REVENUE,Peterborough Cars
Peterborough City Council,More than one Service Area Category,More than one Service Division,Transport,01/08/2011,394064,1728,REVENUE,Peterborough Cars
Peterborough City Council,Children's & Education Services - Education,Non-School Funding,Transport,01/08/2011,394065,691.2,REVENUE,Peterborough Cars
Peterborough City Council,Children's & Education Services - Education,Non-School Funding,Transport,01/08/2011,394066,1512,REVENUE,Peterborough Cars
Peterborough City Council,Children's & Education Services - Education,Non-School Funding,Transport,01/08/2011,394067,1138.86,REVENUE,Peterborough Cars
Peterborough City Council,Children's & Education Services - Education,Non-School Funding,Transport,01/08/2011,394068,1366.86,REVENUE,Peterborough Cars
Peterborough City Council,Children's & Education Services - Education,Non-School Funding,Transport,01/08/2011,394072,1366.86,REVENUE,Peterborough Cars
Peterborough City Council,Children's & Education Services - Education,Non-School Funding,Transport,01/08/2011,394073,734.4,REVENUE,King Cabz
Peterborough City Council,Children's & Education Services - Education,Non-School Funding,Supplies and Services,01/08/2011,394077,10950,REVENUE,The Regard Partnership Limited
Peterborough City Council,Children's & Education Services - Education,Non-School Funding,Transport,01/08/2011,394081,3157.25,REVENUE,Newborough Coaches Ltd
Peterborough City Council,Children's & Education Services - Education,Non-School Funding,Transport,01/08/2011,394082,2993,REVENUE,Newborough Coaches Ltd
Peterborough City Council,More than one Service Area Category,More than one Service Division,Transport,01/08/2011,394083,3762,REVENUE,Newborough Coaches Ltd
Peterborough City Council,Children's & Education Services - Education,Non-School Funding,Transport,01/08/2011,394084,3805.49,REVENUE,Newborough Coaches Ltd
Peterborough City Council,Children's & Education Services - Education,Non-School Funding,Transport,01/08/2011,394085,4104,REVENUE,Newborough Coaches Ltd
Peterborough City Council,Children's & Education Services - Education,Non-School Funding,Transport,01/08/2011,394086,1596,REVENUE,Orton Comm. Transport Assoc. Ltd
Peterborough City Council,Children's & Education Services - Education,Non-School Funding,Transport,01/08/2011,394087,1786,REVENUE,Orton Comm. Transport Assoc. Ltd
Peterborough City Council,Children's & Education Services - Education,Non-School Funding,Transport,01/08/2011,394088,1900,REVENUE,Orton Comm. Transport Assoc. Ltd
Peterborough City Council,Children's & Education Services - Education,Non-School Funding,Transport,01/08/2011,394089,1805,REVENUE,Orton Comm. Transport Assoc. Ltd
Peterborough City Council,Children's & Education Services - Education,Non-School Funding,Transport,01/08/2011,394091,1846.8,REVENUE,Peterborough Cars
Peterborough City Council,Children's & Education Services - Education,Non-School Funding,Transport,01/08/2011,394095,1200,REVENUE,Peterborough Cars
Peterborough City Council,Children's & Education Services - Education,Non-School Funding,Transport,01/08/2011,394099,576,REVENUE,Peterborough Cars
Peterborough City Council,Children's & Education Services - Education,Non-School Funding,Transport,01/08/2011,394100,2738,REVENUE,Hampton Private Hire
Peterborough City Council,Children's & Education Services - Education,Non-School Funding,Supplies and Services,01/08/2011,394112,1596,REVENUE,Nord Anglia Lifetime Dev. Ltd
Peterborough City Council,Support Services,Support Services,Supplies and Services,01/08/2011,394113,2147.4,REVENUE,PHS Datashred
Peterborough City Council,Children's & Education Services - Children's Social Care,More than one Service Division,Employees,01/08/2011,394138,2025,REVENUE,Care Recruitment UK Ltd
Peterborough City Council,Central Services to the Public,Local Tax,Supplies and Services,01/08/2011,394213,570.24,REVENUE,Financial Data Management
Peterborough City Council,Central Services to the Public,Local Tax,Supplies and Services,01/08/2011,394215,1514.88,REVENUE,Financial Data Management
Peterborough City Council,More than one Service Area Category,More than one Service Division,Supplies and Services,01/08/2011,394220,8649.27,REVENUE,Financial Data Management
Peterborough City Council,More than one Service Area Category,More than one Service Division,Supplies and Services,01/08/2011,394221,1479.19,REVENUE,TNT Post Midlands Ltd
Peterborough City Council,Support Services,Support Services,Employees,01/08/2011,394248,984,REVENUE,NWA Social and Market Research Ltd
Peterborough City Council,Children's & Education Services - Children's Social Care,Family Support Services,Premises,01/08/2011,394252,675.6,REVENUE,Thorokleen Ltd
Peterborough City Council,Support Services,Support Services,Supplies and Services,01/08/2011,394258,6456,REVENUE,CADline
Peterborough City Council,Children's & Education Services - Children's Social Care,Children Looked After,Supplies and Services - Transfer Payments,01/08/2011,394259,3005.1,REVENUE,National Fostering Agency
Peterborough City Council,Support Services,Support Services,Employees,01/08/2011,394260,744,REVENUE,Inst. of Rev. Ratings & Valuation (IRRV)
Peterborough City Council,"Highways, Roads & Transport Services",Street Lighting,Supplies and Services,01/08/2011,394264,1902,REVENUE,Dambach UK Ltd
Peterborough City Council,Children's & Education Services - Children's Social Care,Children Looked After,Supplies and Services - Transfer Payments,01/08/2011,394265,3338.7,REVENUE,National Fostering Agency
Peterborough City Council,Children's & Education Services - Children's Social Care,Children Looked After,Supplies and Services - Transfer Payments,01/08/2011,394289,1801.02,REVENUE,National Fostering Agency
Peterborough City Council,"Cultural, Environmental and Planning Services",Regulatory services,Supplies and Services,01/08/2011,394291,960,REVENUE,Redacted Personal Data
Peterborough City Council,Deficit/(Surplus) on Trading Undertakings,Trading Account Surpluses & Deficits,Supplies and Services,01/08/2011,394294,2592,REVENUE,Godric Engineering Ltd
Peterborough City Council,Capital,Capital,Capital Pending Update to BS,01/08/2011,394295,4140,CAPITAL,Northgate Information Solutions
Peterborough City Council,Children's & Education Services - Children's Social Care,Support Services & Management Costs,Employees,01/08/2011,394297,770,REVENUE,University of East Anglia
Peterborough City Council,Children's & Education Services - Children's Social Care,Support Services & Management Costs,Employees,01/08/2011,394298,770,REVENUE,University of East Anglia
Peterborough City Council,Deficit/(Surplus) on Trading Undertakings,Trading Account Surpluses & Deficits,Supplies and Services,01/08/2011,394299,3443.11,REVENUE,Godric Engineering Ltd
Peterborough City Council,Deficit/(Surplus) on Trading Undertakings,Trading Account Surpluses & Deficits,Supplies and Services,01/08/2011,394301,1722,REVENUE,Godric Engineering Ltd
Peterborough City Council,Children's & Education Services - Children's Social Care,Children Looked After,Supplies and Services - Transfer Payments,01/08/2011,394303,2970.96,REVENUE,National Fostering Agency
Peterborough City Council,Adult Social Care,Other Adult Services,Supplies and Services,01/08/2011,394304,500,REVENUE,Cambs & P'boro NHS Foundation Trust
Peterborough City Council,Adult Social Care,Other Adult Services,Supplies and Services,01/08/2011,394306,13336.71,REVENUE,Cambs & P'boro NHS Foundation Trust
Peterborough City Council,Adult Social Care,Other Adult Services,Supplies and Services,01/08/2011,394309,61833.33,REVENUE,Cambs & P'boro NHS Foundation Trust
Peterborough City Council,Adult Social Care,Other Adult Services,Supplies and Services,01/08/2011,394312,8335.71,REVENUE,Cambs & P'boro NHS Foundation Trust
Peterborough City Council,Adult Social Care,Other Adult Services,Supplies and Services,01/08/2011,394318,2375.71,REVENUE,Cambs & P'boro NHS Foundation Trust
Peterborough City Council,Children's & Education Services - Children's Social Care,Non-School Funding,Premises,01/08/2011,394320,50000,REVENUE,Dexter Brown Ltd
Peterborough City Council,Children's & Education Services - Children's Social Care,Children Looked After,Supplies and Services - Transfer Payments,01/08/2011,394485,19092.85,REVENUE,Oracle Care Ltd (Region 2)
Peterborough City Council,Housing Services,Private Sector Housing Renewal,Supplies and Services,01/08/2011,394489,1496,REVENUE,T G M Maintenance
Peterborough City Council,Children's & Education Services - Children's Social Care,Children Looked After,Supplies and Services - Transfer Payments,01/08/2011,394524,1315.65,REVENUE,Alliance Foster Care
Peterborough City Council,"Cultural, Environmental and Planning Services",Community Development,Employees,01/08/2011,394539,1387.2,REVENUE,Anne Corder Recruitment
Peterborough City Council,Housing Services,Homelessness,Employees,01/08/2011,394540,577.29,REVENUE,Anne Corder Recruitment
Peterborough City Council,Housing Services,Homelessness,Employees,01/08/2011,394541,510.07,REVENUE,Anne Corder Recruitment
Peterborough City Council,Housing Services,Homelessness,Employees,01/08/2011,394547,612.88,REVENUE,Anne Corder Recruitment
Peterborough City Council,Children's & Education Services - Education,Non-School Funding,Supplies and Services,01/08/2011,394575,10850.84,REVENUE,Cool Milk Ltd
Peterborough City Council,More than one Service Area Category,More than one Service Division,Third Party Payments,01/08/2011,394586,748767.8,REVENUE,Enterprise Managed Services Limited
Peterborough City Council,More than one Service Area Category,More than one Service Division,Balance Sheet,01/08/2011,394591,782,Balance Sheet,Barnack Parish Council
Peterborough City Council,More than one Service Area Category,More than one Service Division,Balance Sheet,01/08/2011,394592,580,Balance Sheet,Barnack Parish Council
Peterborough City Council,Deficit/(Surplus) on Trading Undertakings,Trading Account Surpluses & Deficits,Supplies and Services,01/08/2011,394593,40775.6,REVENUE,Enterprise Managed Services Limited
Peterborough City Council,"Highways, Roads & Transport Services","Transport planning, policy and strategy",Supplies and Services,01/08/2011,394636,917.46,REVENUE,Johnston Press Midlands Division
Peterborough City Council,"Cultural, Environmental and Planning Services","Cemetery, Crematorium & Mortuary Services",Premises,01/08/2011,394641,924.52,REVENUE,Facultatieve Technologies Ltd
Peterborough City Council,Children's & Education Services - Children's Social Care,Children Looked After,Supplies and Services - Transfer Payments,01/08/2011,394648,771.43,REVENUE,Alliance Foster Care
Peterborough City Council,Children's & Education Services - Education,Secondary,Supplies and Services,01/08/2011,394651,560,REVENUE,Sports Connections Foundation
Peterborough City Council,Deficit/(Surplus) on Trading Undertakings,Trading Account Surpluses & Deficits,Premises,01/08/2011,394655,6600,REVENUE,Anglia Support Partnership
Peterborough City Council,Children's & Education Services - Children's Social Care,Children Looked After,Supplies and Services - Transfer Payments,01/08/2011,394661,3011.43,REVENUE,Nene Valley Fostering Agency
Peterborough City Council,Children's & Education Services - Children's Social Care,Children Looked After,Supplies and Services - Transfer Payments,01/08/2011,394662,2878.57,REVENUE,Nene Valley Fostering Agency
Peterborough City Council,Children's & Education Services - Children's Social Care,Children Looked After,Supplies and Services - Transfer Payments,01/08/2011,394663,3011.43,REVENUE,Nene Valley Fostering Agency
Peterborough City Council,Children's & Education Services - Children's Social Care,Children Looked After,Supplies and Services - Transfer Payments,01/08/2011,394665,2878.57,REVENUE,Nene Valley Fostering Agency
Peterborough City Council,Children's & Education Services - Children's Social Care,Children Looked After,Supplies and Services - Transfer Payments,01/08/2011,394667,2878.57,REVENUE,Nene Valley Fostering Agency
Peterborough City Council,Children's & Education Services - Children's Social Care,Children Looked After,Supplies and Services - Transfer Payments,01/08/2011,394668,3011.43,REVENUE,Nene Valley Fostering Agency
Peterborough City Council,Children's & Education Services - Children's Social Care,Children Looked After,Supplies and Services - Transfer Payments,01/08/2011,394676,2878.57,REVENUE,Nene Valley Fostering Agency
Peterborough City Council,Children's & Education Services - Children's Social Care,Children Looked After,Supplies and Services - Transfer Payments,01/08/2011,394677,2838.89,REVENUE,Nene Valley Fostering Agency
Peterborough City Council,Children's & Education Services - Children's Social Care,Children Looked After,Supplies and Services - Transfer Payments,01/08/2011,394678,3007.66,REVENUE,Nene Valley Fostering Agency
Peterborough City Council,Children's & Education Services - Children's Social Care,Children Looked After,Supplies and Services - Transfer Payments,01/08/2011,394679,2886.54,REVENUE,Nene Valley Fostering Agency
Peterborough City Council,"Cultural, Environmental and Planning Services",Economic Development,Employees,01/08/2011,394681,1468.8,REVENUE,Hays Specialist Recruitment Ltd
Peterborough City Council,Children's & Education Services - Children's Social Care,Children Looked After,Supplies and Services - Transfer Payments,01/08/2011,394701,2945.49,REVENUE,Nene Valley Fostering Agency
Peterborough City Council,Children's & Education Services - Children's Social Care,Children Looked After,Supplies and Services - Transfer Payments,01/08/2011,394703,3239.94,REVENUE,Nene Valley Fostering Agency
Peterborough City Council,Children's & Education Services - Children's Social Care,Children Looked After,Supplies and Services - Transfer Payments,01/08/2011,394704,3112.49,REVENUE,Nene Valley Fostering Agency
Peterborough City Council,Children's & Education Services - Children's Social Care,Children Looked After,Supplies and Services - Transfer Payments,01/08/2011,394709,3260.89,REVENUE,Alliance Foster Care
Peterborough City Council,Children's & Education Services - Children's Social Care,Children Looked After,Supplies and Services - Transfer Payments,01/08/2011,394711,1577.85,REVENUE,Alliance Foster Care
Peterborough City Council,Housing Services,Private Sector Housing Renewal,Supplies and Services,01/08/2011,394719,1759.5,REVENUE,Deprez Developments
Peterborough City Council,Children's & Education Services - Education,Non-School Funding,Supplies and Services,01/08/2011,394732,1514,REVENUE,Cool Milk at School Ltd
Peterborough City Council,"Cultural, Environmental and Planning Services",Economic Development,Employees,01/08/2011,394756,1306.8,REVENUE,Hays Specialist Recruitment Ltd
Peterborough City Council,Support Services,Support Services,Supplies and Services,01/08/2011,394757,717.6,REVENUE,Speedy Couriers
Peterborough City Council,"Cultural, Environmental and Planning Services",Regulatory services,Supplies and Services,01/08/2011,394763,8340,REVENUE,RH Environmental Ltd
Peterborough City Council,"Cultural, Environmental and Planning Services",Economic Development,Employees,01/08/2011,394771,1332,REVENUE,Hays Specialist Recruitment Ltd
Peterborough City Council,"Cultural, Environmental and Planning Services",Economic Development,Employees,01/08/2011,394776,1332,REVENUE,Hays Specialist Recruitment Ltd
Peterborough City Council,Children's & Education Services - Education,Non-School Funding,Transport,01/08/2011,394780,718.2,REVENUE,R Kime & Co Ltd
Peterborough City Council,"Highways, Roads & Transport Services",Public Transport,Supplies and Services,01/08/2011,394781,1770,REVENUE,R Kime & Co Ltd
Peterborough City Council,"Highways, Roads & Transport Services",Public Transport,Supplies and Services,01/08/2011,394782,1976,REVENUE,R Kime & Co Ltd
Peterborough City Council,"Highways, Roads & Transport Services",Public Transport,Supplies and Services,01/08/2011,394783,3039.47,REVENUE,R Kime & Co Ltd
Peterborough City Council,"Highways, Roads & Transport Services",Public Transport,Supplies and Services,01/08/2011,394784,11896.7,REVENUE,Delaine Buses Ltd
Peterborough City Council,"Highways, Roads & Transport Services",Traffic management & Road Safety,Supplies and Services,01/08/2011,394786,881.98,REVENUE,Johnston Press Midlands Division
Peterborough City Council,"Cultural, Environmental and Planning Services",Development Control,Supplies and Services,01/08/2011,394787,588,REVENUE,Johnston Press Midlands Division
Peterborough City Council,"Cultural, Environmental and Planning Services",Economic Development,Employees,01/08/2011,394797,1332,REVENUE,Hays Specialist Recruitment Ltd
Peterborough City Council,More than one Service Area Category,More than one Service Division,Supplies and Services,01/08/2011,394801,1403.77,REVENUE,Loomis UK Ltd
Peterborough City Council,Children's & Education Services - Children's Social Care,Youth Justice,Transport,01/08/2011,394802,791.29,REVENUE,Reliance
Peterborough City Council,"Cultural, Environmental and Planning Services",Economic Development,Employees,01/08/2011,394803,1351.36,REVENUE,Hays Specialist Recruitment Ltd
Peterborough City Council,Children's & Education Services - Children's Social Care,Youth Justice,Transport,01/08/2011,394804,824.29,REVENUE,Reliance
Peterborough City Council,Children's & Education Services - Children's Social Care,Youth Justice,Transport,01/08/2011,394806,807.79,REVENUE,Reliance
Peterborough City Council,"Cultural, Environmental and Planning Services",Economic Development,Employees,01/08/2011,394807,1332,REVENUE,Hays Specialist Recruitment Ltd
Peterborough City Council,Children's & Education Services - Children's Social Care,Youth Justice,Transport,01/08/2011,394812,643.94,REVENUE,Reliance
Peterborough City Council,"Cultural, Environmental and Planning Services",Economic Development,Employees,01/08/2011,394815,1332,REVENUE,Hays Specialist Recruitment Ltd
Peterborough City Council,Children's & Education Services - Children's Social Care,Youth Justice,Transport,01/08/2011,394816,807.79,REVENUE,Reliance
Peterborough City Council,"Cultural, Environmental and Planning Services",Economic Development,Employees,01/08/2011,394818,1332,REVENUE,Hays Specialist Recruitment Ltd
Peterborough City Council,Central Services to the Public,Local Tax,Supplies and Services,01/08/2011,394819,2760.42,REVENUE,Financial Data Management
Peterborough City Council,"Cultural, Environmental and Planning Services",Economic Development,Employees,01/08/2011,394820,1332,REVENUE,Hays Specialist Recruitment Ltd
Peterborough City Council,"Cultural, Environmental and Planning Services",Economic Development,Employees,01/08/2011,394823,666,REVENUE,Hays Specialist Recruitment Ltd
Peterborough City Council,Children's & Education Services - Children's Social Care,Children Looked After,Supplies and Services - Transfer Payments,01/08/2011,394833,2791.46,REVENUE,IAS TACT
Peterborough City Council,Support Services,Support Services,Supplies and Services,01/08/2011,394846,759.38,REVENUE,AXA PPP Healthcare OHS Ltd
Peterborough City Council,Children's & Education Services - Children's Social Care,Children Looked After,Supplies and Services - Transfer Payments,01/08/2011,394856,3345.92,REVENUE,IAS TACT
Peterborough City Council,Deficit/(Surplus) on Trading Undertakings,Trading Account Surpluses & Deficits,Transport,01/08/2011,394860,32716.8,REVENUE,Specialist Fleet Services
Peterborough City Council,Children's & Education Services - Children's Social Care,Children Looked After,Supplies and Services - Transfer Payments,01/08/2011,394864,3041.29,REVENUE,IAS TACT
Peterborough City Council,More than one Service Area Category,More than one Service Division,Supplies and Services,01/08/2011,394868,2247.05,REVENUE,TNT Post Midlands Ltd
Peterborough City Council,Children's & Education Services - Children's Social Care,Children Looked After,Supplies and Services - Transfer Payments,01/08/2011,394871,3042.7,REVENUE,IAS TACT
Peterborough City Council,Children's & Education Services - Children's Social Care,Children Looked After,Supplies and Services - Transfer Payments,01/08/2011,394872,3444.86,REVENUE,IAS TACT
Peterborough City Council,Children's & Education Services - Children's Social Care,Children Looked After,Supplies and Services - Transfer Payments,01/08/2011,394876,3146.87,REVENUE,IAS TACT
Peterborough City Council,"Highways, Roads & Transport Services","Environmental, Safety & Routine Maintenance",Supplies and Services,01/08/2011,394878,4998.76,REVENUE,British Telecom PLC
Peterborough City Council,"Highways, Roads & Transport Services",Street Lighting,Premises,01/08/2011,394886,1779.54,REVENUE,E.ON Energy
Peterborough City Council,Children's & Education Services - Education,Non-School Funding,Transport,01/08/2011,394891,6804.3,REVENUE,Cambridgeshire County Council
Peterborough City Council,Children's & Education Services - Education,Secondary,Supplies and Services,01/08/2011,394901,4976.4,REVENUE,Rider Levett Bucknall UK Ltd
Peterborough City Council,Children's & Education Services - Children's Social Care,Children Looked After,Supplies and Services - Transfer Payments,01/08/2011,394937,5582.92,REVENUE,IAS TACT
Peterborough City Council,Children's & Education Services - Children's Social Care,Children Looked After,Supplies and Services,01/08/2011,394952,8327,REVENUE,Peterborough Provider Services
Peterborough City Council,Children's & Education Services - Children's Social Care,Other Children's & Families Services,Supplies and Services,01/08/2011,394955,12750,REVENUE,Peterborough Provider Services
Peterborough City Council,Children's & Education Services - Children's Social Care,Children Looked After,Supplies and Services - Transfer Payments,01/08/2011,394971,4761.3,REVENUE,Tree House Care Fostering Solutions Ltd
Peterborough City Council,"Highways, Roads & Transport Services","Transport planning, policy and strategy",Employees,01/08/2011,394987,1485,REVENUE,Randstad CPE
Peterborough City Council,"Cultural, Environmental and Planning Services",Economic Development,Employees,01/08/2011,394995,1323.9,REVENUE,Randstad CPE
Peterborough City Council,Children's & Education Services - Education,Non-School Funding,Transport,01/08/2011,395023,777.6,REVENUE,3 Star Ambassador Taxis
Peterborough City Council,Children's & Education Services - Education,Non-School Funding,Transport,01/08/2011,395025,1332,REVENUE,3 Star Ambassador Taxis
Peterborough City Council,Children's & Education Services - Education,Non-School Funding,Transport,01/08/2011,395026,648,REVENUE,3 Star Ambassador Taxis
Peterborough City Council,Children's & Education Services - Education,Non-School Funding,Transport,01/08/2011,395027,1202.4,REVENUE,3 Star Ambassador Taxis
Peterborough City Council,Children's & Education Services - Education,Non-School Funding,Transport,01/08/2011,395028,1368,REVENUE,R T Enterprises Ltd T/A Royal Taxis
Peterborough City Council,Children's & Education Services - Education,Non-School Funding,Transport,01/08/2011,395030,546,REVENUE,R T Enterprises Ltd T/A Royal Taxis
Peterborough City Council,Children's & Education Services - Education,Non-School Funding,Transport,01/08/2011,395047,1805,REVENUE,Veolia Transport UK Ltd
Peterborough City Council,Children's & Education Services - Education,Non-School Funding,Transport,01/08/2011,395048,2271.07,REVENUE,Translinc Ltd
Peterborough City Council,Children's & Education Services - Education,Non-School Funding,Transport,01/08/2011,395049,2409.39,REVENUE,Translinc Ltd
Peterborough City Council,Children's & Education Services - Education,Non-School Funding,Transport,01/08/2011,395050,1706.12,REVENUE,Translinc Ltd
Peterborough City Council,Children's & Education Services - Children's Social Care,Children Looked After,Supplies and Services - Transfer Payments,01/08/2011,395073,10796,REVENUE,Lincoln House Childrens Services
Peterborough City Council,Children's & Education Services - Children's Social Care,Children Looked After,Supplies and Services - Transfer Payments,01/08/2011,395075,10796,REVENUE,Lincoln House Childrens Services
Peterborough City Council,"Cultural, Environmental and Planning Services",Planning Policy,Supplies and Services,01/08/2011,395077,4651.2,REVENUE,Local Government Services
Peterborough City Council,Support Services,Support Services,Supplies and Services,01/08/2011,395136,22285.2,REVENUE,Virgin Media Ltd
Peterborough City Council,More than one Service Area Category,More than one Service Division,More than one Expenses Type,01/08/2011,395139,68337.08,"Mixture of Capital, Revenue and/or Balance Sheet",Ringway Infrastructure Services
Peterborough City Council,Capital,Capital,Capital Pending Update to BS,01/08/2011,395159,78057,CAPITAL,Benchmark Contracts Ltd
Peterborough City Council,"Cultural, Environmental and Planning Services",Community Development,Supplies and Services,01/08/2011,395172,500,REVENUE,Peterborough BMX Club
Peterborough City Council,Children's & Education Services - Children's Social Care,Support Services & Management Costs,Supplies and Services,01/08/2011,395181,700,REVENUE,HM Courts and Tribunals Service (HMCTS)
Peterborough City Council,"Cultural, Environmental and Planning Services",Community Development,Supplies and Services,01/08/2011,395184,500,REVENUE,Ufford Parish Council
Peterborough City Council,Children's & Education Services - Children's Social Care,Children Looked After,Supplies and Services - Transfer Payments,01/08/2011,395191,1888.12,REVENUE,IAS TACT
Peterborough City Council,Children's & Education Services - Children's Social Care,Children Looked After,Supplies and Services - Transfer Payments,01/08/2011,395194,2984.66,REVENUE,IAS TACT
Peterborough City Council,Children's & Education Services - Children's Social Care,Children Looked After,Supplies and Services - Transfer Payments,01/08/2011,395196,3173.45,REVENUE,IAS TACT
Peterborough City Council,Children's & Education Services - Children's Social Care,Children Looked After,Supplies and Services - Transfer Payments,01/08/2011,395197,2943.17,REVENUE,IAS TACT
Peterborough City Council,Children's & Education Services - Children's Social Care,Children Looked After,Supplies and Services - Transfer Payments,01/08/2011,395199,3486.98,REVENUE,IAS TACT
Peterborough City Council,Children's & Education Services - Children's Social Care,Children Looked After,Supplies and Services - Transfer Payments,01/08/2011,395203,2791.46,REVENUE,IAS TACT
Peterborough City Council,Children's & Education Services - Children's Social Care,Children Looked After,Supplies and Services - Transfer Payments,01/08/2011,395205,3173.45,REVENUE,IAS TACT
Peterborough City Council,Children's & Education Services - Children's Social Care,Children Looked After,Supplies and Services - Transfer Payments,01/08/2011,395210,1904.07,REVENUE,IAS TACT
Peterborough City Council,Children's & Education Services - Children's Social Care,Children Looked After,Supplies and Services - Transfer Payments,01/08/2011,395213,5677.32,REVENUE,IAS TACT
Peterborough City Council,Children's & Education Services - Children's Social Care,Other Children's & Families Services,Employees,01/08/2011,395215,2407.15,REVENUE,Sanctuary Personnel Ltd
Peterborough City Council,Children's & Education Services - Children's Social Care,Children Looked After,Supplies and Services,01/08/2011,395216,1453.48,REVENUE,XMA Limited
Peterborough City Council,"Highways, Roads & Transport Services",Traffic management & Road Safety,Supplies and Services,01/08/2011,395219,1650,REVENUE,Pitney Bowes Software Ltd
Peterborough City Council,Children's & Education Services - Education,Management and support services,Premises,01/08/2011,395222,1661.15,REVENUE,Bull & Co Ltd
Peterborough City Council,Deficit/(Surplus) on Trading Undertakings,Trading Account Surpluses & Deficits,Supplies and Services,01/08/2011,395234,5880,REVENUE,Wilks Head & Eve
Peterborough City Council,Deficit/(Surplus) on Trading Undertakings,Trading Account Surpluses & Deficits,Supplies and Services,01/08/2011,395238,1200,REVENUE,Wilks Head & Eve
Peterborough City Council,Children's & Education Services - Education,Secondary,Employees,01/08/2011,395242,1779.36,REVENUE,Mana Resourcing Ltd
Peterborough City Council,Children's & Education Services - Education,Secondary,Employees,01/08/2011,395261,823.2,REVENUE,Mana Resourcing Ltd
Peterborough City Council,"Cultural, Environmental and Planning Services",Planning Policy,Supplies and Services,01/08/2011,395287,4352,REVENUE,K S P Consultancy
Peterborough City Council,Support Services,Support Services,Supplies and Services,01/08/2011,395288,1326.6,REVENUE,Eversheds LLP
Peterborough City Council,Children's & Education Services - Education,Non-School Funding,Transport,01/08/2011,395302,517.2,REVENUE,A2B Euro Cars
Peterborough City Council,More than one Service Area Category,More than one Service Division,Transport,01/08/2011,395304,1573.2,REVENUE,A2B Euro Cars
Peterborough City Council,Children's & Education Services - Education,Non-School Funding,Transport,01/08/2011,395305,1504.58,REVENUE,A2B Euro Cars
Peterborough City Council,Children's & Education Services - Education,Non-School Funding,Transport,01/08/2011,395306,1368,REVENUE,A2B Euro Cars
Peterborough City Council,Children's & Education Services - Education,Non-School Funding,Transport,01/08/2011,395307,2395.2,REVENUE,A2B Euro Cars
Peterborough City Council,Children's & Education Services - Education,Non-School Funding,Transport,01/08/2011,395308,1800.98,REVENUE,A2B Euro Cars
Peterborough City Council,Children's & Education Services - Education,Non-School Funding,Transport,01/08/2011,395309,2188.8,REVENUE,A2B Euro Cars
Peterborough City Council,More than one Service Area Category,More than one Service Division,Transport,01/08/2011,395310,1900.8,REVENUE,A2B Euro Cars
Peterborough City Council,Children's & Education Services - Education,Non-School Funding,Transport,01/08/2011,395314,912,REVENUE,A2B Euro Cars
Peterborough City Council,Children's & Education Services - Education,Non-School Funding,Transport,01/08/2011,395316,2143.2,REVENUE,A2B Euro Cars
Peterborough City Council,Children's & Education Services - Education,Non-School Funding,Transport,01/08/2011,395317,2234.4,REVENUE,A2B Euro Cars
Peterborough City Council,Children's & Education Services - Education,Non-School Funding,Transport,01/08/2011,395318,2006.4,REVENUE,A2B Euro Cars
Peterborough City Council,Children's & Education Services - Education,Non-School Funding,Transport,01/08/2011,395319,1231.2,REVENUE,A2B Euro Cars
Peterborough City Council,Children's & Education Services - Education,Non-School Funding,Transport,01/08/2011,395320,1222.08,REVENUE,A2B Euro Cars
Peterborough City Council,Children's & Education Services - Education,Non-School Funding,Transport,01/08/2011,395321,1003.2,REVENUE,A2B Euro Cars
Peterborough City Council,Children's & Education Services - Education,Non-School Funding,Transport,01/08/2011,395323,648,REVENUE,A2B Euro Cars
Peterborough City Council,Children's & Education Services - Education,Non-School Funding,Transport,01/08/2011,395324,1732.8,REVENUE,A2B Euro Cars
Peterborough City Council,Children's & Education Services - Education,Non-School Funding,Transport,01/08/2011,395325,1459.2,REVENUE,A2B Euro Cars
Peterborough City Council,Children's & Education Services - Education,Non-School Funding,Transport,01/08/2011,395326,592.8,REVENUE,A2B Euro Cars
Peterborough City Council,Children's & Education Services - Children's Social Care,Family Support Services,More than one Expenses Type,01/08/2011,395359,3674.16,REVENUE,PAM Recruitment Ltd
Peterborough City Council,Children's & Education Services - Children's Social Care,Children Looked After,Supplies and Services - Transfer Payments,01/08/2011,395377,5456.1,REVENUE,I S P
Peterborough City Council,Children's & Education Services - Children's Social Care,Children Looked After,Supplies and Services - Transfer Payments,01/08/2011,395393,8022.3,REVENUE,I S P
Peterborough City Council,Adult Social Care,Other Adult Services,Premises,01/08/2011,395398,1566,REVENUE,Freeth Cartwright LLP
Peterborough City Council,Adult Social Care,Other Adult Services,Premises,01/08/2011,395399,514.8,REVENUE,Freeth Cartwright LLP
Peterborough City Council,"Highways, Roads & Transport Services",Public Transport,Supplies and Services,01/08/2011,395406,7514,REVENUE,Veolia Transport UK Ltd
Peterborough City Council,"Cultural, Environmental and Planning Services",Waste Collection,Supplies and Services,01/08/2011,395410,26379.67,REVENUE,H W Martin Waste Ltd
Peterborough City Council,"Cultural, Environmental and Planning Services",Waste Collection,Supplies and Services,01/08/2011,395412,15862.94,REVENUE,H W Martin Waste Ltd
Peterborough City Council,Children's & Education Services - Children's Social Care,Support Services & Management Costs,Supplies and Services,01/08/2011,395413,720,REVENUE,Redacted Personal Data
Peterborough City Council,"Cultural, Environmental and Planning Services",Waste Collection,Supplies and Services,01/08/2011,395414,11172.28,REVENUE,H W Martin Waste Ltd
Peterborough City Council,"Cultural, Environmental and Planning Services",Waste Collection,Supplies and Services,01/08/2011,395416,1221.83,REVENUE,H W Martin Waste Ltd
Peterborough City Council,"Cultural, Environmental and Planning Services",Waste Collection,Supplies and Services,01/08/2011,395418,1604.74,REVENUE,H W Martin Waste Ltd
Peterborough City Council,"Cultural, Environmental and Planning Services",Waste Collection,Supplies and Services,01/08/2011,395419,835.39,REVENUE,H W Martin Waste Ltd
Peterborough City Council,Children's & Education Services - Children's Social Care,Children Looked After,Supplies and Services - Transfer Payments,01/08/2011,395434,712.99,REVENUE,PC Homes
Peterborough City Council,"Cultural, Environmental and Planning Services","Cemetery, Crematorium & Mortuary Services",Supplies and Services,01/08/2011,395461,1060.81,REVENUE,Anglia Co-operative Funerals
Peterborough City Council,"Cultural, Environmental and Planning Services",Economic Development,Supplies and Services,01/08/2011,395903,742.56,REVENUE,Linstock Communications Ltd
Peterborough City Council,Children's & Education Services - Education,Non-School Funding,Transport,01/08/2011,395910,864,REVENUE,3 Star Ambassador Taxis
Peterborough City Council,More than one Service Area Category,More than one Service Division,Transport,01/08/2011,395911,795.6,REVENUE,A2B Euro Cars
Peterborough City Council,Children's & Education Services - Education,Non-School Funding,Transport,01/08/2011,395912,643.68,REVENUE,A2B Euro Cars
Peterborough City Council,Children's & Education Services - Education,Non-School Funding,Transport,01/08/2011,395913,1252.8,REVENUE,A2B Euro Cars
Peterborough City Council,Children's & Education Services - Education,Non-School Funding,Transport,01/08/2011,395914,1468.8,REVENUE,A2B Euro Cars
Peterborough City Council,Children's & Education Services - Education,Non-School Funding,Transport,01/08/2011,395915,1296,REVENUE,A2B Euro Cars
Peterborough City Council,Children's & Education Services - Education,Non-School Funding,Transport,01/08/2011,395916,1521,REVENUE,A2B Euro Cars
Peterborough City Council,Children's & Education Services - Education,Non-School Funding,Transport,01/08/2011,395917,1144.8,REVENUE,A2B Euro Cars
Peterborough City Council,Children's & Education Services - Education,Non-School Funding,Transport,01/08/2011,395918,1108.8,REVENUE,A2B Euro Cars
Peterborough City Council,Children's & Education Services - Education,Non-School Funding,Transport,01/08/2011,395920,518.4,REVENUE,A2B Euro Cars
Peterborough City Council,Children's & Education Services - Education,Non-School Funding,Transport,01/08/2011,395921,619.2,REVENUE,A2B Euro Cars
Peterborough City Council,Children's & Education Services - Education,Non-School Funding,Transport,01/08/2011,395922,1003.2,REVENUE,A2B Euro Cars
Peterborough City Council,Children's & Education Services - Education,Non-School Funding,Transport,01/08/2011,395923,1129.68,REVENUE,Woodgrange Travel Ltd t/a DiamondCars
Peterborough City Council,Children's & Education Services - Education,Non-School Funding,Transport,01/08/2011,395924,2941.2,REVENUE,Woodgrange Travel Ltd t/a DiamondCars
Peterborough City Council,Children's & Education Services - Education,Non-School Funding,Transport,01/08/2011,395925,1527.6,REVENUE,Woodgrange Travel Ltd t/a DiamondCars
Peterborough City Council,Children's & Education Services - Education,Non-School Funding,Transport,01/08/2011,395937,2052,REVENUE,Woodgrange Travel Ltd t/a DiamondCars
Peterborough City Council,Children's & Education Services - Children's Social Care,Children Looked After,Supplies and Services - Transfer Payments,01/08/2011,395962,1826.35,REVENUE,PC Homes
Peterborough City Council,"Highways, Roads & Transport Services",Environmental Initiatives,Supplies and Services,01/08/2011,396001,600,REVENUE,Cyclescheme Ltd
Peterborough City Council,More than one Service Area Category,More than one Service Division,Transport,01/08/2011,396050,584.4,REVENUE,R T Enterprises Ltd T/A Royal Taxis
Peterborough City Council,Children's & Education Services - Children's Social Care,Children Looked After,Transport,01/08/2011,396054,3108,REVENUE,Peterborough Cars
Peterborough City Council,Support Services,Support Services,Supplies and Services,01/08/2011,396056,6000,REVENUE,Northgate Information Solutions
Peterborough City Council,Deficit/(Surplus) on Trading Undertakings,Trading Account Surpluses & Deficits,Transport,01/08/2011,396074,617.04,REVENUE,Limesquare Vehicle Rental Ltd
Peterborough City Council,Deficit/(Surplus) on Trading Undertakings,Trading Account Surpluses & Deficits,Transport,01/08/2011,396075,617.04,REVENUE,Limesquare Vehicle Rental Ltd
Peterborough City Council,Deficit/(Surplus) on Trading Undertakings,Trading Account Surpluses & Deficits,Transport,01/08/2011,396076,617.04,REVENUE,Limesquare Vehicle Rental Ltd
Peterborough City Council,Deficit/(Surplus) on Trading Undertakings,Trading Account Surpluses & Deficits,Transport,01/08/2011,396077,617.04,REVENUE,Limesquare Vehicle Rental Ltd
Peterborough City Council,Deficit/(Surplus) on Trading Undertakings,Trading Account Surpluses & Deficits,Transport,01/08/2011,396078,617.04,REVENUE,Limesquare Vehicle Rental Ltd
Peterborough City Council,Deficit/(Surplus) on Trading Undertakings,Trading Account Surpluses & Deficits,Transport,01/08/2011,396079,617.04,REVENUE,Limesquare Vehicle Rental Ltd
Peterborough City Council,Deficit/(Surplus) on Trading Undertakings,Trading Account Surpluses & Deficits,Transport,01/08/2011,396080,617.04,REVENUE,Limesquare Vehicle Rental Ltd
Peterborough City Council,Deficit/(Surplus) on Trading Undertakings,Trading Account Surpluses & Deficits,Transport,01/08/2011,396082,617.04,REVENUE,Limesquare Vehicle Rental Ltd
Peterborough City Council,Deficit/(Surplus) on Trading Undertakings,Trading Account Surpluses & Deficits,Transport,01/08/2011,396083,617.04,REVENUE,Limesquare Vehicle Rental Ltd
Peterborough City Council,Deficit/(Surplus) on Trading Undertakings,Trading Account Surpluses & Deficits,Transport,01/08/2011,396084,617.04,REVENUE,Limesquare Vehicle Rental Ltd
Peterborough City Council,Deficit/(Surplus) on Trading Undertakings,Trading Account Surpluses & Deficits,Transport,01/08/2011,396086,617.04,REVENUE,Limesquare Vehicle Rental Ltd
Peterborough City Council,Support Services,Support Services,Premises,01/08/2011,396098,625.06,REVENUE,Zurich Insurance Company
Peterborough City Council,Support Services,Support Services,Premises,01/08/2011,396099,820.65,REVENUE,Zurich Insurance Company
Peterborough City Council,Support Services,Support Services,Employees,01/08/2011,396106,5613.43,REVENUE,Tribal Resourcing Ltd
Peterborough City Council,"Cultural, Environmental and Planning Services",Community Development,Supplies and Services,01/08/2011,396155,500,REVENUE,Helpston Parish Council
Peterborough City Council,Children's & Education Services - Children's Social Care,Children Looked After,Supplies and Services,01/08/2011,396190,1360,REVENUE,PACT
Peterborough City Council,Children's & Education Services - Education,Non-School Funding,Supplies and Services,01/08/2011,396193,25796,REVENUE,Wilds Lodge School
Peterborough City Council,More than one Service Area Category,More than one Service Division,Supplies and Services,01/08/2011,396202,3552.28,REVENUE,TNT Post Midlands Ltd
Peterborough City Council,Children's & Education Services - Children's Social Care,Children Looked After,Supplies and Services - Transfer Payments,01/08/2011,396203,3007.66,REVENUE,Nene Valley Fostering Agency
Peterborough City Council,Children's & Education Services - Children's Social Care,Children Looked After,Supplies and Services,01/08/2011,396212,25796,REVENUE,Wilds Lodge School
Peterborough City Council,Children's & Education Services - Children's Social Care,Children Looked After,Supplies and Services,01/08/2011,396213,25796,REVENUE,Wilds Lodge School
Peterborough City Council,Children's & Education Services - Children's Social Care,Children Looked After,Supplies and Services,01/08/2011,396214,25796,REVENUE,Wilds Lodge School
Peterborough City Council,Children's & Education Services - Education,Non-School Funding,Supplies and Services,01/08/2011,396216,25796,REVENUE,Wilds Lodge School
Peterborough City Council,Children's & Education Services - Children's Social Care,Children Looked After,Supplies and Services - Transfer Payments,01/08/2011,396218,2331.43,REVENUE,Nene Valley Fostering Agency
Peterborough City Council,Children's & Education Services - Children's Social Care,Children Looked After,Supplies and Services,01/08/2011,396231,25796,REVENUE,Wilds Lodge School
Peterborough City Council,Children's & Education Services - Children's Social Care,Children Looked After,Supplies and Services,01/08/2011,396234,25796,REVENUE,Wilds Lodge School
Peterborough City Council,Children's & Education Services - Children's Social Care,Children Looked After,Supplies and Services,01/08/2011,396235,16509,REVENUE,Wilds Lodge School
Peterborough City Council,Children's & Education Services - Children's Social Care,Children Looked After,Supplies and Services,01/08/2011,396239,25796,REVENUE,Wilds Lodge School
Peterborough City Council,Housing Services,Supporting People,Third Party Payments,01/08/2011,396240,548.08,REVENUE,Hanover Housing Association
Peterborough City Council,Children's & Education Services - Children's Social Care,Children Looked After,Supplies and Services,01/08/2011,396241,25796,REVENUE,Wilds Lodge School
Peterborough City Council,Housing Services,Supporting People,Third Party Payments,01/08/2011,396242,19236,REVENUE,Cross Keys Homes
Peterborough City Council,Housing Services,Supporting People,Third Party Payments,01/08/2011,396244,62521.23,REVENUE,Axiom Housing Association
Peterborough City Council,Children's & Education Services - Children's Social Care,Children Looked After,Supplies and Services - Transfer Payments,01/08/2011,396245,2817.14,REVENUE,Nene Valley Fostering Agency
Peterborough City Council,"Cultural, Environmental and Planning Services",Community Development,Supplies and Services,01/08/2011,396246,600,REVENUE,Chaithanya-Kerala Cultural Association
Peterborough City Council,Housing Services,Supporting People,Third Party Payments,01/08/2011,396247,1041.65,REVENUE,Anchor Trust
Peterborough City Council,Housing Services,Supporting People,Third Party Payments,01/08/2011,396249,1777.8,REVENUE,Peterborough Provider Services
Peterborough City Council,Housing Services,Supporting People,Third Party Payments,01/08/2011,396252,5250.72,REVENUE,Peterborough PCT
Peterborough City Council,Housing Services,Supporting People,Third Party Payments,01/08/2011,396255,1777.8,REVENUE,Peterborough PCT
Peterborough City Council,Housing Services,Supporting People,Third Party Payments,01/08/2011,396258,1094.07,REVENUE,Accent Nene Housing Soc. Ltd
Peterborough City Council,Housing Services,Supporting People,Third Party Payments,01/08/2011,396261,23153.64,REVENUE,YMCA Cambridge & Peterborough
Peterborough City Council,Housing Services,Supporting People,Third Party Payments,01/08/2011,396264,2222.25,REVENUE,Terrence Higgins Trust Ltd
Peterborough City Council,Housing Services,Supporting People,Third Party Payments,01/08/2011,396267,10190.99,REVENUE,Stonham Housing Association
Peterborough City Council,Children's & Education Services - Education,Non-School Funding,Supplies and Services,01/08/2011,396270,25796,REVENUE,Wilds Lodge School
Peterborough City Council,Housing Services,Supporting People,Third Party Payments,01/08/2011,396275,5017.14,REVENUE,Peterborough Womens Aid
Peterborough City Council,Housing Services,Supporting People,Third Party Payments,01/08/2011,396276,2933.36,REVENUE,NACRO
Peterborough City Council,Housing Services,Supporting People,Third Party Payments,01/08/2011,396278,1415.93,REVENUE,Minster General Housing
Peterborough City Council,Housing Services,Supporting People,Third Party Payments,01/08/2011,396280,5176.38,REVENUE,Springboard Housing Association
Peterborough City Council,Housing Services,Supporting People,Third Party Payments,01/08/2011,396282,1777.8,REVENUE,Peterborough Provider Services
Peterborough City Council,Deficit/(Surplus) on Trading Undertakings,Trading Account Surpluses & Deficits,Supplies and Services,01/08/2011,396309,6018.72,REVENUE,Perkins Engines Co Ltd
Peterborough City Council,Deficit/(Surplus) on Trading Undertakings,Trading Account Surpluses & Deficits,Supplies and Services,01/08/2011,396311,807.82,REVENUE,Perkins Engines Co Ltd
Peterborough City Council,"Cultural, Environmental and Planning Services",Economic Development,Supplies and Services,01/08/2011,396342,6280,REVENUE,Athene Communications
Peterborough City Council,Support Services,Support Services,Premises,01/08/2011,396359,3335.54,REVENUE,Zurich Insurance Company
Peterborough City Council,Children's & Education Services - Education,Secondary,Supplies and Services,01/08/2011,396370,2000,REVENUE,Peterborough Regional College
Peterborough City Council,More than one Service Area Category,More than one Service Division,Balance Sheet,01/08/2011,396406,1250,Balance Sheet,Redacted Personal Data
Peterborough City Council,More than one Service Area Category,More than one Service Division,Transport,01/08/2011,396436,1980,REVENUE,A2B Euro Cars
Peterborough City Council,Children's & Education Services - Education,Non-School Funding,Transport,01/08/2011,396438,697.2,REVENUE,Woodgrange Travel Ltd t/a DiamondCars
Peterborough City Council,Children's & Education Services - Education,Non-School Funding,Transport,01/08/2011,396439,3121.2,REVENUE,Woodgrange Travel Ltd t/a DiamondCars
Peterborough City Council,More than one Service Area Category,More than one Service Division,Transport,01/08/2011,396440,1514.16,REVENUE,Woodgrange Travel Ltd t/a DiamondCars
Peterborough City Council,Children's & Education Services - Education,Non-School Funding,Transport,01/08/2011,396441,940.8,REVENUE,Woodgrange Travel Ltd t/a DiamondCars
Peterborough City Council,Children's & Education Services - Education,Non-School Funding,Transport,01/08/2011,396442,2183.4,REVENUE,Woodgrange Travel Ltd t/a DiamondCars
Peterborough City Council,Children's & Education Services - Education,Non-School Funding,Transport,01/08/2011,396443,1942.8,REVENUE,Woodgrange Travel Ltd t/a DiamondCars
Peterborough City Council,Children's & Education Services - Education,Non-School Funding,Transport,01/08/2011,396444,526.8,REVENUE,Woodgrange Travel Ltd t/a DiamondCars
Peterborough City Council,Children's & Education Services - Education,Non-School Funding,Transport,01/08/2011,396445,3391.44,REVENUE,Woodgrange Travel Ltd t/a DiamondCars
Peterborough City Council,Children's & Education Services - Education,Non-School Funding,Transport,01/08/2011,396446,1836,REVENUE,Woodgrange Travel Ltd t/a DiamondCars
Peterborough City Council,Children's & Education Services - Education,Non-School Funding,Transport,01/08/2011,396449,664.2,REVENUE,Peterborough Cars
Peterborough City Council,Children's & Education Services - Education,Non-School Funding,Transport,01/08/2011,396461,1765.2,REVENUE,Woodgrange Travel Ltd t/a DiamondCars
Peterborough City Council,Children's & Education Services - Education,Non-School Funding,Supplies and Services,01/08/2011,396466,674.5,REVENUE,Kindercare Pre-School Ltd
Peterborough City Council,Deficit/(Surplus) on Trading Undertakings,Trading Account Surpluses & Deficits,Supplies and Services,01/08/2011,396473,603.24,REVENUE,Barron Clark Castings Ltd
Peterborough City Council,Deficit/(Surplus) on Trading Undertakings,Trading Account Surpluses & Deficits,Supplies and Services,01/08/2011,396475,712.92,REVENUE,Barron Clark Castings Ltd
Peterborough City Council,"Cultural, Environmental and Planning Services",More than one Service Division,More than one Expenses Type,01/08/2011,396482,9843.95,REVENUE,Vivacity Culture and Leisure
Peterborough City Council,More than one Service Area Category,More than one Service Division,More than one Expenses Type,01/08/2011,396491,4835,"Mixture of Capital, Revenue and/or Balance Sheet",Casbon Building Services
Peterborough City Council,More than one Service Area Category,More than one Service Division,More than one Expenses Type,01/08/2011,396492,5726,"Mixture of Capital, Revenue and/or Balance Sheet",Heating & Plumbing Services
Peterborough City Council,More than one Service Area Category,More than one Service Division,More than one Expenses Type,01/08/2011,396508,3898,"Mixture of Capital, Revenue and/or Balance Sheet",M J Greaves
Peterborough City Council,More than one Service Area Category,More than one Service Division,More than one Expenses Type,01/08/2011,396513,14408,"Mixture of Capital, Revenue and/or Balance Sheet",Casbon Building Services
Peterborough City Council,Children's & Education Services - Education,Secondary,Transport,01/08/2011,396515,1272,REVENUE,A2B Euro Cars
Peterborough City Council,More than one Service Area Category,More than one Service Division,More than one Expenses Type,01/08/2011,396516,4208,"Mixture of Capital, Revenue and/or Balance Sheet",Casbon Building Services
Peterborough City Council,Housing Services,Homelessness,Supplies and Services,01/08/2011,396517,782.5,REVENUE,Language Line Ltd
Peterborough City Council,Housing Services,Homelessness,Supplies and Services,01/08/2011,396518,623.38,REVENUE,Language Line Ltd
Peterborough City Council,"Cultural, Environmental and Planning Services",Economic Development,Third Party Payments,01/08/2011,396559,20621.91,REVENUE,NWES
Peterborough City Council,Support Services,Support Services,Premises,01/08/2011,396560,1844.58,REVENUE,Anglian Water
Peterborough City Council,Support Services,Support Services,Premises,01/08/2011,396576,767.95,REVENUE,British Gas Trading Ltd
Peterborough City Council,Support Services,Support Services,Premises,01/08/2011,396577,1983.48,REVENUE,Eastern Shires Purchasing Organisation
Peterborough City Council,Support Services,Support Services,Premises,01/08/2011,396578,3419.4,REVENUE,Southern Electric
Peterborough City Council,Support Services,Support Services,Premises,01/08/2011,396586,6114.12,REVENUE,Zurich Insurance Company
Peterborough City Council,Deficit/(Surplus) on Trading Undertakings,Trading Account Surpluses & Deficits,Premises,01/08/2011,396595,594.8,REVENUE,Redacted Personal Data
Peterborough City Council,Children's & Education Services - Education,Non-School Funding,Supplies and Services,01/08/2011,396597,936,REVENUE,Redacted Personal Data
Peterborough City Council,Children's & Education Services - Education,Non-School Funding,Transport,01/08/2011,396634,540,REVENUE,3 Star Ambassador Taxis
Peterborough City Council,More than one Service Area Category,More than one Service Division,Transport,01/08/2011,396635,594,REVENUE,3 Star Ambassador Taxis
Peterborough City Council,Children's & Education Services - Education,Non-School Funding,Transport,01/08/2011,396638,1581.6,REVENUE,3 Star Ambassador Taxis
Peterborough City Council,Children's & Education Services - Education,Non-School Funding,Transport,01/08/2011,396639,1778.4,REVENUE,3 Star Ambassador Taxis
Peterborough City Council,Children's & Education Services - Education,Non-School Funding,Transport,01/08/2011,396643,2336,REVENUE,Aardvark Coaches
Peterborough City Council,Children's & Education Services - Education,Non-School Funding,Transport,01/08/2011,396644,2312,REVENUE,Aardvark Coaches
Peterborough City Council,Children's & Education Services - Education,Non-School Funding,Transport,01/08/2011,396645,2336,REVENUE,Aardvark Coaches
Peterborough City Council,Children's & Education Services - Education,Non-School Funding,Transport,01/08/2011,396646,2272,REVENUE,Aardvark Coaches
Peterborough City Council,Children's & Education Services - Education,Non-School Funding,Transport,01/08/2011,396647,2595,REVENUE,Aardvark Coaches
Peterborough City Council,Children's & Education Services - Education,Non-School Funding,Transport,01/08/2011,396648,2016,REVENUE,A2B Euro Cars
Peterborough City Council,Children's & Education Services - Education,Non-School Funding,Transport,01/08/2011,396649,608.4,REVENUE,A2B Euro Cars
Peterborough City Council,Children's & Education Services - Education,Non-School Funding,Transport,01/08/2011,396650,1422,REVENUE,Woodgrange Travel Ltd t/a DiamondCars
Peterborough City Council,More than one Service Area Category,More than one Service Division,Transport,01/08/2011,396651,3762,REVENUE,Newborough Coaches Ltd
Peterborough City Council,Children's & Education Services - Education,Non-School Funding,Transport,01/08/2011,396652,547.2,REVENUE,R T Enterprises Ltd T/A Royal Taxis
Peterborough City Council,Children's & Education Services - Education,Non-School Funding,Transport,01/08/2011,396653,744,REVENUE,R T Enterprises Ltd T/A Royal Taxis
Peterborough City Council,Children's & Education Services - Education,Non-School Funding,Transport,01/08/2011,396654,1601.4,REVENUE,R T Enterprises Ltd T/A Royal Taxis
Peterborough City Council,Children's & Education Services - Education,Non-School Funding,Transport,01/08/2011,396655,2083.8,REVENUE,Goldstar Cabs Ltd
Peterborough City Council,Children's & Education Services - Education,Non-School Funding,Transport,01/08/2011,396656,2083.8,REVENUE,Goldstar Cabs Ltd
Peterborough City Council,Children's & Education Services - Education,Non-School Funding,Transport,01/08/2011,396657,1463.4,REVENUE,Goldstar Cabs Ltd
Peterborough City Council,Children's & Education Services - Education,Non-School Funding,Transport,01/08/2011,396658,1470.6,REVENUE,Goldstar Cabs Ltd
Peterborough City Council,Children's & Education Services - Children's Social Care,Family Support Services,Premises,01/08/2011,396673,630.6,REVENUE,Easy Clean
Peterborough City Council,Support Services,Support Services,Employees,01/08/2011,396676,3672,REVENUE,Brook Street Bureau Plc
Peterborough City Council,Children's & Education Services - Education,Non-School Funding,Supplies and Services,01/08/2011,396694,2672.4,REVENUE,PGL Travel Ltd
Peterborough City Council,Children's & Education Services - Education,Non-School Funding,Supplies and Services,01/08/2011,396695,2672.4,REVENUE,PGL Travel Ltd
Peterborough City Council,Children's & Education Services - Children's Social Care,Support Services & Management Costs,Supplies and Services,01/08/2011,396698,500,REVENUE,Redacted Personal Data
Peterborough City Council,Support Services,Support Services,Premises,01/08/2011,396702,806.34,REVENUE,Southern Electric
Peterborough City Council,Support Services,Support Services,Premises,01/08/2011,396704,2536.22,REVENUE,Anglian Water
Peterborough City Council,"Cultural, Environmental and Planning Services",Economic Development,Supplies and Services,01/08/2011,396705,1359.6,REVENUE,Centre for Sustainable Engineering
Peterborough City Council,Children's & Education Services - Children's Social Care,Support Services & Management Costs,Supplies and Services,01/08/2011,396712,1475.64,REVENUE,Sue Bach Associates Ltd
Peterborough City Council,Children's & Education Services - Children's Social Care,Support Services & Management Costs,Supplies and Services,01/08/2011,396721,35400,REVENUE,WebBased Ltd
Peterborough City Council,Housing Services,Homelessness,Supplies and Services,01/08/2011,396726,549.99,REVENUE,Letsrush
Peterborough City Council,Capital,Capital,Capital Pending Update to BS,01/08/2011,396748,600,CAPITAL,Stirling Maynard and Partners
Peterborough City Council,Capital,Capital,Capital Pending Update to BS,01/08/2011,396751,44860.68,CAPITAL,Haas Automation
Peterborough City Council,Deficit/(Surplus) on Trading Undertakings,Trading Account Surpluses & Deficits,Transport,01/08/2011,396760,16797.6,REVENUE,Alliance & Leicester Commercial Finance Plc
Peterborough City Council,Children's & Education Services - Children's Social Care,Children Looked After,Supplies and Services,01/08/2011,396763,3229.6,REVENUE,Faith in Families
Peterborough City Council,Deficit/(Surplus) on Trading Undertakings,Trading Account Surpluses & Deficits,Supplies and Services,01/08/2011,396799,684.55,REVENUE,Barron Clark Castings Ltd
Peterborough City Council,Deficit/(Surplus) on Trading Undertakings,Trading Account Surpluses & Deficits,Supplies and Services,01/08/2011,396801,524.54,REVENUE,Barron Clark Castings Ltd
Peterborough City Council,Deficit/(Surplus) on Trading Undertakings,Trading Account Surpluses & Deficits,Supplies and Services,01/08/2011,396802,991.44,REVENUE,Barron Clark Castings Ltd
Peterborough City Council,Children's & Education Services - Children's Social Care,Children Looked After,Supplies and Services - Transfer Payments,01/08/2011,396807,8177.4,REVENUE,Youth Justice Board
Peterborough City Council,Support Services,Support Services,Premises,01/08/2011,396818,13403.82,REVENUE,EDF Energy Networks Ltd
Peterborough City Council,Support Services,Support Services,Premises,01/08/2011,396819,10627.81,REVENUE,British Gas Business
Peterborough City Council,Support Services,Support Services,Premises,01/08/2011,396820,7699.79,REVENUE,British Gas Business
Peterborough City Council,Support Services,Support Services,Premises,01/08/2011,396821,1367.9,REVENUE,Anglian Water
Peterborough City Council,Support Services,Support Services,Premises,01/08/2011,396822,2399.85,REVENUE,Southern Electric
Peterborough City Council,Support Services,Support Services,Premises,01/08/2011,396823,596.65,REVENUE,Anglian Water
Peterborough City Council,Central Services to the Public,Local Tax,Employees,01/08/2011,396824,6822.13,REVENUE,Brook Street Bureau Plc
Peterborough City Council,Deficit/(Surplus) on Trading Undertakings,Trading Account Surpluses & Deficits,Supplies and Services,01/08/2011,396850,513.82,REVENUE,Barron Clark Castings Ltd
Peterborough City Council,Children's & Education Services - Children's Social Care,Other Children's & Families Services,Employees,01/08/2011,396883,1658.78,REVENUE,Blue Group International Ltd
Peterborough City Council,Children's & Education Services - Children's Social Care,Other Children's & Families Services,Employees,01/08/2011,396886,1658.78,REVENUE,Blue Group International Ltd
Peterborough City Council,Children's & Education Services - Children's Social Care,Other Children's & Families Services,Employees,01/08/2011,396890,1658.78,REVENUE,Blue Group International Ltd
Peterborough City Council,Children's & Education Services - Children's Social Care,Other Children's & Families Services,Employees,01/08/2011,396892,1658.78,REVENUE,Blue Group International Ltd
Peterborough City Council,Children's & Education Services - Children's Social Care,Other Children's & Families Services,More than one Expenses Type,01/08/2011,396910,2748.86,REVENUE,Blue Group International Ltd
Peterborough City Council,"Cultural, Environmental and Planning Services",Community Development,Supplies and Services - Transfer Payments,01/08/2011,396914,8540.72,REVENUE,Family Action
Peterborough City Council,"Highways, Roads & Transport Services",Public Transport,Supplies and Services,01/08/2011,396937,5000,REVENUE,Vivacity Culture and Leisure
Peterborough City Council,Children's & Education Services - Education,Non-School Funding,Transport,01/08/2011,396966,1555.2,REVENUE,A2B Euro Cars
Peterborough City Council,Children's & Education Services - Education,Non-School Funding,Transport,01/08/2011,396967,1553.4,REVENUE,A2B Euro Cars
Peterborough City Council,Children's & Education Services - Education,Non-School Funding,Transport,01/08/2011,396968,638.4,REVENUE,A2B Euro Cars
Peterborough City Council,Children's & Education Services - Education,Non-School Funding,Transport,01/08/2011,396992,2566.26,REVENUE,Translinc Ltd
Peterborough City Council,Children's & Education Services - Education,Non-School Funding,Transport,01/08/2011,396993,2230.32,REVENUE,Translinc Ltd
Peterborough City Council,Children's & Education Services - Education,Non-School Funding,Transport,01/08/2011,396995,873.6,REVENUE,Redacted Personal Data
Peterborough City Council,Support Services,Support Services,Premises,01/08/2011,397001,524.51,REVENUE,EDF Energy Networks Ltd
Peterborough City Council,Support Services,Support Services,Premises,01/08/2011,397002,1781.78,REVENUE,Anglian Water
Peterborough City Council,"Cultural, Environmental and Planning Services",Economic Development,Premises,01/08/2011,397024,536.78,REVENUE,T Clarke East Limited
Peterborough City Council,"Cultural, Environmental and Planning Services",Recreation & Sport,Premises,01/08/2011,397028,1366.92,REVENUE,T Clarke East Limited
Peterborough City Council,"Cultural, Environmental and Planning Services",Tourism,Supplies and Services,01/08/2011,397031,5596.8,REVENUE,New Vision Group Ltd
Peterborough City Council,Children's & Education Services - Education,Non-School Funding,Third Party Payments,01/08/2011,397039,30750.5,REVENUE,Young Lives
Peterborough City Council,Capital,Capital,Capital Pending Update to BS,01/08/2011,397041,21034.82,CAPITAL,T Clarke East Limited
Peterborough City Council,Capital,Capital,Capital Pending Update to BS,01/08/2011,397129,4050,CAPITAL,Capita Business Services Ltd
Peterborough City Council,Capital,Capital,Capital Pending Update to BS,01/08/2011,397130,2580,CAPITAL,Capita Business Services Ltd
Peterborough City Council,"Cultural, Environmental and Planning Services",Economic Development,Supplies and Services,01/08/2011,397131,4418.26,REVENUE,Centre for Sustainable Engineering
Peterborough City Council,Capital,Capital,Capital Pending Update to BS,01/08/2011,397132,1979.98,CAPITAL,Capita Business Services Ltd
Peterborough City Council,Deficit/(Surplus) on Trading Undertakings,Trading Account Surpluses & Deficits,Supplies and Services,01/08/2011,397161,680.4,REVENUE,British Standards Institute
Peterborough City Council,Children's & Education Services - Children's Social Care,Children Looked After,Supplies and Services,01/08/2011,CHAPS,2662.5,REVENUE,Noonan Crane Property Management
Peterborough City Council,Housing Services,Housing Benefits,Employees,03/08/2011,385607,571.32,REVENUE,Reed Personnel Services Plc
Peterborough City Council,Housing Services,Housing Benefits,Employees,03/08/2011,390597,704.63,REVENUE,Reed Personnel Services Plc
Peterborough City Council,Children's & Education Services - Children's Social Care,Other Children's & Families Services,Employees,03/08/2011,390752,1596,REVENUE,Care Recruitment UK Ltd
Peterborough City Council,Children's & Education Services - Children's Social Care,Other Children's & Families Services,Employees,03/08/2011,392028,1731.6,REVENUE,Medicare First
Peterborough City Council,Children's & Education Services - Children's Social Care,Other Children's & Families Services,Employees,03/08/2011,392700,1776,REVENUE,Medicare First
Peterborough City Council,Children's & Education Services - Children's Social Care,Other Children's & Families Services,Employees,03/08/2011,393090,1731.6,REVENUE,Medicare First
Peterborough City Council,Children's & Education Services - Children's Social Care,Other Children's & Families Services,Employees,03/08/2011,393350,1731.6,REVENUE,Medicare First
Peterborough City Council,Children's & Education Services - Children's Social Care,Support Services & Management Costs,Supplies and Services,03/08/2011,393953,9558.04,REVENUE,National Youth Advocacy Serv
Peterborough City Council,Children's & Education Services - Children's Social Care,Other Children's & Families Services,Employees,03/08/2011,393992,2970,REVENUE,Flick Schofield Ltd
Peterborough City Council,Housing Services,Housing Benefits,Employees,03/08/2011,394022,1183.75,REVENUE,The Synergy Group
Peterborough City Council,Housing Services,Housing Benefits,Employees,03/08/2011,394024,1104.35,REVENUE,The Synergy Group
Peterborough City Council,Housing Services,Housing Benefits,Employees,03/08/2011,394026,1193.28,REVENUE,The Synergy Group
Peterborough City Council,Housing Services,Housing Benefits,Employees,03/08/2011,394028,1389.6,REVENUE,The Synergy Group
Peterborough City Council,Capital,Capital,Capital Pending Update to BS,03/08/2011,394080,61962,CAPITAL,E N Suiter & Sons Ltd
Peterborough City Council,Housing Services,Housing Benefits,Employees,03/08/2011,394110,1039.39,REVENUE,The Synergy Group
Peterborough City Council,Housing Services,Housing Benefits,Employees,03/08/2011,394116,1085.4,REVENUE,The Synergy Group
Peterborough City Council,Housing Services,Housing Benefits,Employees,03/08/2011,394125,1065.6,REVENUE,The Synergy Group
Peterborough City Council,Children's & Education Services - Children's Social Care,Children Looked After,Supplies and Services - Transfer Payments,03/08/2011,394185,12900,REVENUE,MJ Childrens Services
Peterborough City Council,Children's & Education Services - Children's Social Care,Children Looked After,Supplies and Services - Transfer Payments,03/08/2011,394186,12900,REVENUE,MJ Childrens Services
Peterborough City Council,Children's & Education Services - Children's Social Care,Children Looked After,Supplies and Services - Transfer Payments,03/08/2011,394187,2357.14,REVENUE,MJ Childrens Services
Peterborough City Council,Children's & Education Services - Children's Social Care,Children Looked After,Supplies and Services - Transfer Payments,03/08/2011,394188,11700,REVENUE,MJ Childrens Services
Peterborough City Council,Children's & Education Services - Children's Social Care,Children Looked After,Supplies and Services - Transfer Payments,03/08/2011,394323,11400,REVENUE,Lincoln House Childrens Services
Peterborough City Council,Children's & Education Services - Children's Social Care,Children Looked After,Supplies and Services,03/08/2011,394563,579.29,REVENUE,Excell Network Solutions Ltd
Peterborough City Council,Support Services,Support Services,Employees,03/08/2011,394572,1326.67,REVENUE,Venn Group Ltd
Peterborough City Council,Children's & Education Services - Children's Social Care,Support Services & Management Costs,Employees,03/08/2011,394577,1500,REVENUE,Redacted Personal Data
Peterborough City Council,More than one Service Area Category,More than one Service Division,Balance Sheet,03/08/2011,394606,19512.5,Balance Sheet,Helios Properties Plc
Peterborough City Council,Capital,Capital,Capital Pending Update to BS,03/08/2011,394611,2000,CAPITAL,PARCA
Peterborough City Council,Support Services,Support Services,Employees,03/08/2011,394658,591.6,REVENUE,Sacco Mann Ltd
Peterborough City Council,Children's & Education Services - Children's Social Care,Children's Services - Commissioning and Social Work,Third Party Payments,03/08/2011,394672,9927.25,REVENUE,DRINKSENSE
Peterborough City Council,Children's & Education Services - Children's Social Care,Other Children's & Families Services,Third Party Payments,03/08/2011,394707,17500,REVENUE,Ormiston Children & Families Trust
Peterborough City Council,Children's & Education Services - Education,Secondary,Supplies and Services,03/08/2011,394715,24295.57,REVENUE,IIC by Education (P'boro) Ltd
Peterborough City Council,Children's & Education Services - Education,Non-School Funding,Supplies and Services,03/08/2011,394745,18588,REVENUE,I CAN Charity
Peterborough City Council,Children's & Education Services - Children's Social Care,Other Children's & Families Services,Employees,03/08/2011,394750,1731.6,REVENUE,Medicare First
Peterborough City Council,Children's & Education Services - Education,Secondary,Employees,03/08/2011,394765,3840,REVENUE,Top Class Tutors
Peterborough City Council,Capital,Capital,Capital Pending Update to BS,03/08/2011,394795,6240,CAPITAL,Telensa Limited
Peterborough City Council,More than one Service Area Category,More than one Service Division,More than one Expenses Type,03/08/2011,394821,47152,REVENUE,Stagecoach in Peterborough
Peterborough City Council,"Cultural, Environmental and Planning Services",Regulatory services,Supplies and Services,03/08/2011,394867,598.92,REVENUE,CINTRA Ltd
Peterborough City Council,Adult Social Care,Adult Social Care,Supplies and Services,03/08/2011,394899,391826.33,REVENUE,Peterborough Provider Services
Peterborough City Council,Children's & Education Services - Children's Social Care,Other Children's & Families Services,Supplies and Services,03/08/2011,394900,618.96,REVENUE,CINTRA Ltd
Peterborough City Council,Children's & Education Services - Children's Social Care,Other Children's & Families Services,Supplies and Services,03/08/2011,394904,2150.09,REVENUE,CINTRA Ltd
Peterborough City Council,Children's & Education Services - Education,Non-School Funding,Supplies and Services,03/08/2011,394905,1824,REVENUE,Top Class Tutors
Peterborough City Council,Children's & Education Services - Education,Non-School Funding,Supplies and Services,03/08/2011,394908,1824,REVENUE,Top Class Tutors
Peterborough City Council,Children's & Education Services - Education,Non-School Funding,Supplies and Services,03/08/2011,394915,1800,REVENUE,Top Class Tutors
Peterborough City Council,Children's & Education Services - Education,Non-School Funding,Supplies and Services,03/08/2011,394920,1824,REVENUE,Top Class Tutors
Peterborough City Council,Children's & Education Services - Education,Non-School Funding,Supplies and Services,03/08/2011,394921,1824,REVENUE,Top Class Tutors
Peterborough City Council,Children's & Education Services - Children's Social Care,Family Support Services,Third Party Payments,03/08/2011,394939,24698,REVENUE,Peterborough Provider Services
Peterborough City Council,Children's & Education Services - Education,Secondary,Employees,03/08/2011,394948,4989.6,REVENUE,Top Class Tutors
Peterborough City Council,Children's & Education Services - Education,Non-School Funding,Supplies and Services,03/08/2011,394950,6662.5,REVENUE,Peterborough Provider Services
Peterborough City Council,Children's & Education Services - Education,Non-School Funding,Employees,03/08/2011,394957,7464.6,REVENUE,Top Class Tutors
Peterborough City Council,Children's & Education Services - Education,All Schools - apportion across sectors,Premises,03/08/2011,394959,627,REVENUE,Bretton Caterers
Peterborough City Council,"Cultural, Environmental and Planning Services",Economic Development,Employees,03/08/2011,395000,1323.9,REVENUE,Randstad CPE
Peterborough City Council,More than one Service Area Category,More than one Service Division,Balance Sheet,03/08/2011,395098,1014.87,Balance Sheet,Rossendales C B Ltd
Peterborough City Council,Support Services,Support Services,Premises,03/08/2011,395153,664.64,REVENUE,NB Real Estate
Peterborough City Council,Children's & Education Services - Education,Non-School Funding,Supplies and Services,03/08/2011,395154,1076.76,REVENUE,CINTRA Ltd
Peterborough City Council,Support Services,Support Services,Supplies and Services,03/08/2011,395179,40109.68,REVENUE,Danwood Group Limited
Peterborough City Council,"Cultural, Environmental and Planning Services",Economic Development,Employees,03/08/2011,395218,6547.2,REVENUE,Macdonald & Company
Peterborough City Council,Children's & Education Services - Education,Secondary,Employees,03/08/2011,395233,682.8,REVENUE,Mana Resourcing Ltd
Peterborough City Council,"Cultural, Environmental and Planning Services",Economic Development,Employees,03/08/2011,395243,2158.92,REVENUE,Hays Specialist Recruitment Ltd
Peterborough City Council,Children's & Education Services - Education,Secondary,Employees,03/08/2011,395244,921.12,REVENUE,Mana Resourcing Ltd
Peterborough City Council,"Highways, Roads & Transport Services","Transport planning, policy and strategy",Employees,03/08/2011,395247,1674,REVENUE,Hays Specialist Recruitment Ltd
Peterborough City Council,Children's & Education Services - Education,Non-School Funding,Supplies and Services,03/08/2011,395300,3690,REVENUE,Bishop Grosseteste University
Peterborough City Council,"Cultural, Environmental and Planning Services",Economic Development,Employees,03/08/2011,395364,1846.8,REVENUE,Hays Specialist Recruitment Ltd
Peterborough City Council,"Cultural, Environmental and Planning Services",Economic Development,Employees,03/08/2011,395365,1374.46,REVENUE,Hays Specialist Recruitment Ltd
Peterborough City Council,"Cultural, Environmental and Planning Services",Economic Development,Employees,03/08/2011,395366,1544.4,REVENUE,Hays Specialist Recruitment Ltd
Peterborough City Council,Children's & Education Services - Children's Social Care,Children Looked After,Supplies and Services,03/08/2011,395394,531.02,REVENUE,XMA Limited
Peterborough City Council,"Highways, Roads & Transport Services",Public Transport,Supplies and Services,03/08/2011,395458,162175.52,REVENUE,Stagecoach in Peterborough
Peterborough City Council,Support Services,Support Services,Supplies and Services,03/08/2011,395970,8820,REVENUE,Ntrinsic Consulting Europe Ltd
Peterborough City Council,Support Services,Support Services,Supplies and Services,03/08/2011,395993,793.5,REVENUE,DSM (GB) Ltd
Peterborough City Council,Support Services,Support Services,Supplies and Services,03/08/2011,395994,697.2,REVENUE,Browne Jacobson
Peterborough City Council,Children's & Education Services - Children's Social Care,Children Looked After,Supplies and Services,03/08/2011,396061,5420.1,REVENUE,St Andrew's Healthcare
Peterborough City Council,Support Services,Support Services,Supplies and Services,03/08/2011,396088,606.96,REVENUE,O2 (UK) Ltd
Peterborough City Council,Support Services,Support Services & Management Costs,Supplies and Services,03/08/2011,396089,2424,REVENUE,Everything Everywhere Ltd
Peterborough City Council,Children's & Education Services - Children's Social Care,Support Services & Management Costs,Supplies and Services,03/08/2011,396092,4067.31,REVENUE,Everything Everywhere Ltd
Peterborough City Council,Corporate & Democratic Core,Corporate Management,Supplies and Services,03/08/2011,396093,1130.39,REVENUE,Everything Everywhere Ltd
Peterborough City Council,Corporate & Democratic Core,Democratic Representation & Managemetn,Supplies and Services,03/08/2011,396095,572.35,REVENUE,Everything Everywhere Ltd
Peterborough City Council,Support Services,Support Services,Supplies and Services,03/08/2011,396162,900,REVENUE,Redacted Personal Data
Peterborough City Council,Children's & Education Services - Children's Social Care,Children Looked After,Supplies and Services - Transfer Payments,03/08/2011,396171,1360,REVENUE,Nene Valley Fostering Agency
Peterborough City Council,Support Services,Support Services & Management Costs,Employees,03/08/2011,396181,1253,REVENUE,University of the West of England
Peterborough City Council,More than one Service Area Category,More than one Service Division,More than one Expenses Type,03/08/2011,396182,346485.61,"Mixture of Capital, Revenue and/or Balance Sheet",Ringway Infrastructure Services
Peterborough City Council,Children's & Education Services - Children's Social Care,Children Looked After,Employees,03/08/2011,396320,754.5,REVENUE,Wrixon Care Services
Peterborough City Council,Capital,Capital,Capital Pending Update to BS,03/08/2011,396360,4773.35,CAPITAL,Rider Levett Bucknall UK Ltd
Peterborough City Council,Deficit/(Surplus) on Trading Undertakings,Trading Account Surpluses & Deficits,Supplies and Services,03/08/2011,396401,725.84,REVENUE,Schaeffler (UK) Ltd
Peterborough City Council,Capital,Capital,Capital Pending Update to BS,03/08/2011,396426,73359.6,CAPITAL,MARS (Construction) Ltd
Peterborough City Council,Children's & Education Services - Education,All Schools - apportion across sectors,Supplies and Services,03/08/2011,396471,2500,REVENUE,Aspect
Peterborough City Council,Children's & Education Services - Education,Non-School Funding,Supplies and Services,03/08/2011,396789,1152,REVENUE,Top Class Tutors
Peterborough City Council,Support Services,Support Services,Employees,03/08/2011,396825,9119.24,REVENUE,Brook Street Bureau Plc
Peterborough City Council,Children's & Education Services - Education,Non-School Funding,Supplies and Services,03/08/2011,396826,600,REVENUE,Redacted Personal Data
Peterborough City Council,Deficit/(Surplus) on Trading Undertakings,Trading Account Surpluses & Deficits,Supplies and Services,03/08/2011,396831,710.77,REVENUE,Princebuild Limited
Peterborough City Council,Deficit/(Surplus) on Trading Undertakings,Trading Account Surpluses & Deficits,Premises,03/08/2011,396838,519.08,REVENUE,Princebuild Limited
Peterborough City Council,Support Services,Support Services,Premises,03/08/2011,396843,561.28,REVENUE,Princebuild Limited
Peterborough City Council,Deficit/(Surplus) on Trading Undertakings,Trading Account Surpluses & Deficits,Supplies and Services,03/08/2011,396861,705.6,REVENUE,Barron Clark Castings Ltd
Peterborough City Council,Children's & Education Services - Children's Social Care,Support Services & Management Costs,Supplies and Services,03/08/2011,396942,2800,REVENUE,Redacted Personal Data
Peterborough City Council,Children's & Education Services - Children's Social Care,Support Services & Management Costs,Supplies and Services,03/08/2011,396944,2800,REVENUE,Redacted Personal Data
Peterborough City Council,More than one Service Area Category,More than one Service Division,Equity,03/08/2011,396996,558.74,"Mixture of Capital, Revenue and/or Balance Sheet",Richardson Auctions
Peterborough City Council,"Cultural, Environmental and Planning Services",Economic Development,Employees,03/08/2011,397006,5275.02,REVENUE,Opportunity Peterborough
Peterborough City Council,"Cultural, Environmental and Planning Services",Waste Collection,Premises,03/08/2011,397013,4586.03,REVENUE,A G Aylward EMS Maintenance & Minor Works Ltd
Peterborough City Council,More than one Service Area Category,More than one Service Division,More than one Expenses Type,03/08/2011,397029,7487.81,"Mixture of Capital, Revenue and/or Balance Sheet",T Clarke East Limited
Peterborough City Council,"Cultural, Environmental and Planning Services",Economic Development,Supplies and Services,03/08/2011,397046,5000,REVENUE,Vivacity Culture and Leisure
Peterborough City Council,Support Services,Support Services,Premises,03/08/2011,397163,2861.92,REVENUE,Eastern Shires Purchasing Organisation
Peterborough City Council,"Cultural, Environmental and Planning Services",Culture & Heritage,Supplies and Services,03/08/2011,397166,700,REVENUE,Maraca2Percussion Duo (Tim Palmer)
Peterborough City Council,"Cultural, Environmental and Planning Services",Recreation & Sport,Supplies and Services,03/08/2011,397204,5514.87,REVENUE,D C Leisure Management Ltd T/a P'boro Ltd
Peterborough City Council,"Cultural, Environmental and Planning Services",Culture & Heritage,Premises,03/08/2011,397221,2683.72,REVENUE,Princebuild Limited
Peterborough City Council,Deficit/(Surplus) on Trading Undertakings,Trading Account Surpluses & Deficits,Supplies and Services,03/08/2011,397229,1440,REVENUE,Architecnik Ltd
Peterborough City Council,Children's & Education Services - Education,Non-School Funding,Transport,03/08/2011,397285,1234.8,REVENUE,Woodgrange Travel Ltd t/a DiamondCars
Peterborough City Council,Children's & Education Services - Education,Non-School Funding,Transport,03/08/2011,397290,796.86,REVENUE,Peterborough Cars
Peterborough City Council,Children's & Education Services - Education,Non-School Funding,Transport,03/08/2011,397291,796.86,REVENUE,Peterborough Cars
Peterborough City Council,Children's & Education Services - Children's Social Care,Other Children's & Families Services,Supplies and Services - Transfer Payments,03/08/2011,397343,600,REVENUE,Redacted Personal Data
Peterborough City Council,Children's & Education Services - Children's Social Care,Other Children's & Families Services,Supplies and Services - Transfer Payments,03/08/2011,397344,613.6,REVENUE,Redacted Personal Data
Peterborough City Council,Children's & Education Services - Children's Social Care,Other Children's & Families Services,Supplies and Services - Transfer Payments,03/08/2011,397453,669.48,REVENUE,Redacted Personal Data
Peterborough City Council,Children's & Education Services - Children's Social Care,Children Looked After,Supplies and Services - Transfer Payments,03/08/2011,397460,616.18,REVENUE,Redacted Personal Data
Peterborough City Council,Children's & Education Services - Children's Social Care,Children Looked After,Supplies and Services - Transfer Payments,03/08/2011,397461,560.98,REVENUE,Redacted Personal Data
Peterborough City Council,Children's & Education Services - Children's Social Care,Children Looked After,Supplies and Services - Transfer Payments,03/08/2011,397462,560.98,REVENUE,Redacted Personal Data
Peterborough City Council,Children's & Education Services - Children's Social Care,Children Looked After,Supplies and Services - Transfer Payments,03/08/2011,397463,707.42,REVENUE,Redacted Personal Data
Peterborough City Council,Children's & Education Services - Children's Social Care,Children Looked After,Supplies and Services - Transfer Payments,03/08/2011,397464,560.98,REVENUE,Redacted Personal Data
Peterborough City Council,Children's & Education Services - Children's Social Care,Children Looked After,Supplies and Services - Transfer Payments,03/08/2011,397465,529.9,REVENUE,Redacted Personal Data
Peterborough City Council,Children's & Education Services - Children's Social Care,Children Looked After,Supplies and Services - Transfer Payments,03/08/2011,397467,529.9,REVENUE,Redacted Personal Data
Peterborough City Council,Children's & Education Services - Children's Social Care,Children Looked After,Supplies and Services - Transfer Payments,03/08/2011,397468,529.9,REVENUE,Redacted Personal Data
Peterborough City Council,Children's & Education Services - Children's Social Care,Children Looked After,Supplies and Services - Transfer Payments,03/08/2011,397469,529.9,REVENUE,Redacted Personal Data
Peterborough City Council,Children's & Education Services - Children's Social Care,Children Looked After,Supplies and Services - Transfer Payments,03/08/2011,397470,529.9,REVENUE,Redacted Personal Data
Peterborough City Council,Children's & Education Services - Children's Social Care,Children Looked After,Supplies and Services - Transfer Payments,03/08/2011,397471,529.9,REVENUE,Redacted Personal Data
Peterborough City Council,Children's & Education Services - Children's Social Care,Children Looked After,Supplies and Services - Transfer Payments,03/08/2011,397472,529.9,REVENUE,Redacted Personal Data
Peterborough City Council,Children's & Education Services - Children's Social Care,Children Looked After,Supplies and Services - Transfer Payments,03/08/2011,397475,560.98,REVENUE,Redacted Personal Data
Peterborough City Council,Children's & Education Services - Children's Social Care,Children Looked After,Supplies and Services - Transfer Payments,03/08/2011,397476,560.98,REVENUE,Redacted Personal Data
Peterborough City Council,Children's & Education Services - Children's Social Care,Children Looked After,Supplies and Services - Transfer Payments,03/08/2011,397478,529.9,REVENUE,Redacted Personal Data
Peterborough City Council,Children's & Education Services - Children's Social Care,Children Looked After,Supplies and Services - Transfer Payments,03/08/2011,397480,776.79,REVENUE,Redacted Personal Data
Peterborough City Council,Children's & Education Services - Children's Social Care,Children Looked After,Supplies and Services - Transfer Payments,03/08/2011,397481,560.98,REVENUE,Redacted Personal Data
Peterborough City Council,Children's & Education Services - Children's Social Care,Children Looked After,Supplies and Services - Transfer Payments,03/08/2011,397482,529.9,REVENUE,Redacted Personal Data
Peterborough City Council,Children's & Education Services - Children's Social Care,Children Looked After,Supplies and Services - Transfer Payments,03/08/2011,397483,529.9,REVENUE,Redacted Personal Data
Peterborough City Council,Children's & Education Services - Children's Social Care,Children Looked After,Supplies and Services - Transfer Payments,03/08/2011,397484,529.9,REVENUE,Redacted Personal Data
Peterborough City Council,Children's & Education Services - Children's Social Care,Children Looked After,Supplies and Services - Transfer Payments,03/08/2011,397487,529.9,REVENUE,Redacted Personal Data
Peterborough City Council,Children's & Education Services - Children's Social Care,Children Looked After,Supplies and Services - Transfer Payments,03/08/2011,397488,529.9,REVENUE,Redacted Personal Data
Peterborough City Council,Children's & Education Services - Children's Social Care,Children Looked After,Supplies and Services - Transfer Payments,03/08/2011,397489,529.9,REVENUE,Redacted Personal Data
Peterborough City Council,Children's & Education Services - Children's Social Care,Children Looked After,Supplies and Services - Transfer Payments,03/08/2011,397499,560.98,REVENUE,Redacted Personal Data
Peterborough City Council,Children's & Education Services - Children's Social Care,Children Looked After,Supplies and Services - Transfer Payments,03/08/2011,397500,885.08,REVENUE,Redacted Personal Data
Peterborough City Council,Children's & Education Services - Children's Social Care,Children Looked After,Supplies and Services - Transfer Payments,03/08/2011,397503,529.9,REVENUE,Redacted Personal Data
Peterborough City Council,Children's & Education Services - Children's Social Care,Children Looked After,Supplies and Services - Transfer Payments,03/08/2011,397504,529.9,REVENUE,Redacted Personal Data
Peterborough City Council,Children's & Education Services - Children's Social Care,Children Looked After,Supplies and Services - Transfer Payments,03/08/2011,397506,529.9,REVENUE,Redacted Personal Data
Peterborough City Council,Children's & Education Services - Children's Social Care,Children Looked After,Supplies and Services - Transfer Payments,03/08/2011,397510,560.98,REVENUE,Redacted Personal Data
Peterborough City Council,Children's & Education Services - Children's Social Care,Children Looked After,Supplies and Services - Transfer Payments,03/08/2011,397516,529.9,REVENUE,Redacted Personal Data
Peterborough City Council,Children's & Education Services - Children's Social Care,Children Looked After,Supplies and Services - Transfer Payments,03/08/2011,397521,560.98,REVENUE,Redacted Personal Data
Peterborough City Council,Children's & Education Services - Children's Social Care,Children Looked After,Supplies and Services - Transfer Payments,03/08/2011,397533,626.43,REVENUE,Redacted Personal Data
Peterborough City Council,Children's & Education Services - Children's Social Care,Children Looked After,Supplies and Services - Transfer Payments,03/08/2011,397540,529.9,REVENUE,Redacted Personal Data
Peterborough City Council,Children's & Education Services - Children's Social Care,Children Looked After,Supplies and Services - Transfer Payments,03/08/2011,397547,571.83,REVENUE,Redacted Personal Data
Peterborough City Council,Children's & Education Services - Children's Social Care,Family Support Services,Supplies and Services,03/08/2011,397552,1148.22,REVENUE,Redacted Personal Data
Peterborough City Council,Children's & Education Services - Children's Social Care,Children Looked After,Supplies and Services - Transfer Payments,03/08/2011,397571,529.9,REVENUE,Redacted Personal Data
Peterborough City Council,Children's & Education Services - Children's Social Care,Children Looked After,Supplies and Services - Transfer Payments,03/08/2011,397577,529.9,REVENUE,Redacted Personal Data
Peterborough City Council,Children's & Education Services - Children's Social Care,Children Looked After,Supplies and Services - Transfer Payments,03/08/2011,397584,885.08,REVENUE,Redacted Personal Data
Peterborough City Council,Children's & Education Services - Children's Social Care,Children Looked After,Supplies and Services - Transfer Payments,03/08/2011,397586,885.08,REVENUE,Redacted Personal Data
Peterborough City Council,Children's & Education Services - Children's Social Care,Children Looked After,Supplies and Services - Transfer Payments,03/08/2011,397587,885.08,REVENUE,Redacted Personal Data
Peterborough City Council,Children's & Education Services - Children's Social Care,Children Looked After,Supplies and Services - Transfer Payments,03/08/2011,397588,885.08,REVENUE,Redacted Personal Data
Peterborough City Council,Children's & Education Services - Children's Social Care,Children Looked After,Supplies and Services - Transfer Payments,03/08/2011,397589,885.08,REVENUE,Redacted Personal Data
Peterborough City Council,Children's & Education Services - Children's Social Care,Children Looked After,Supplies and Services - Transfer Payments,03/08/2011,397592,532.56,REVENUE,Redacted Personal Data
Peterborough City Council,Children's & Education Services - Children's Social Care,Children Looked After,Supplies and Services - Transfer Payments,03/08/2011,397594,529.9,REVENUE,Redacted Personal Data
Peterborough City Council,Children's & Education Services - Children's Social Care,Children Looked After,Supplies and Services - Transfer Payments,03/08/2011,397598,560.98,REVENUE,Redacted Personal Data
Peterborough City Council,Children's & Education Services - Children's Social Care,Children Looked After,Supplies and Services - Transfer Payments,03/08/2011,397617,529.9,REVENUE,Redacted Personal Data
Peterborough City Council,Children's & Education Services - Children's Social Care,Children Looked After,Supplies and Services - Transfer Payments,03/08/2011,397618,560.98,REVENUE,Redacted Personal Data
Peterborough City Council,Children's & Education Services - Children's Social Care,Children Looked After,Supplies and Services - Transfer Payments,03/08/2011,397660,560.98,REVENUE,Redacted Personal Data
Peterborough City Council,Children's & Education Services - Children's Social Care,Children Looked After,Supplies and Services - Transfer Payments,03/08/2011,397662,571.83,REVENUE,Redacted Personal Data
Peterborough City Council,Children's & Education Services - Children's Social Care,Children Looked After,Supplies and Services - Transfer Payments,03/08/2011,397675,669.9,REVENUE,Redacted Personal Data
Peterborough City Council,Children's & Education Services - Children's Social Care,Children Looked After,Supplies and Services - Transfer Payments,03/08/2011,397678,1753.22,REVENUE,Redacted Personal Data
Peterborough City Council,Children's & Education Services - Children's Social Care,Other Children's & Families Services,Supplies and Services - Transfer Payments,03/08/2011,397680,669.53,REVENUE,Redacted Personal Data
Peterborough City Council,Children's & Education Services - Children's Social Care,Children Looked After,Supplies and Services - Transfer Payments,03/08/2011,397682,697.06,REVENUE,Redacted Personal Data
Peterborough City Council,Children's & Education Services - Children's Social Care,Children Looked After,Supplies and Services - Transfer Payments,03/08/2011,397684,1138.92,REVENUE,Redacted Personal Data
Peterborough City Council,Children's & Education Services - Children's Social Care,Children Looked After,Supplies and Services - Transfer Payments,03/08/2011,397706,572.25,REVENUE,Redacted Personal Data
Peterborough City Council,Children's & Education Services - Children's Social Care,Children Looked After,Supplies and Services - Transfer Payments,03/08/2011,397711,1326.24,REVENUE,Redacted Personal Data
Peterborough City Council,Children's & Education Services - Education,Non-School Funding,Transport,03/08/2011,397739,1344,REVENUE,Woodgrange Travel Ltd t/a DiamondCars
Peterborough City Council,Children's & Education Services - Education,Non-School Funding,Transport,03/08/2011,397740,711,REVENUE,Goldstar Cabs Ltd
Peterborough City Council,Children's & Education Services - Education,Non-School Funding,Transport,03/08/2011,397741,1156.8,REVENUE,Goldstar Cabs Ltd
Peterborough City Council,Children's & Education Services - Education,Non-School Funding,Transport,03/08/2011,397742,960,REVENUE,Goldstar Cabs Ltd
Peterborough City Council,Children's & Education Services - Education,Non-School Funding,Transport,03/08/2011,397743,1632,REVENUE,Goldstar Cabs Ltd
Peterborough City Council,Children's & Education Services - Education,Non-School Funding,Transport,03/08/2011,397744,1335.6,REVENUE,Goldstar Cabs Ltd
Peterborough City Council,Children's & Education Services - Education,Non-School Funding,Transport,03/08/2011,397745,1190.4,REVENUE,Goldstar Cabs Ltd
Peterborough City Council,Children's & Education Services - Education,Non-School Funding,Transport,03/08/2011,397746,595.2,REVENUE,Goldstar Cabs Ltd
Peterborough City Council,Children's & Education Services - Education,Non-School Funding,Transport,03/08/2011,397748,2041.2,REVENUE,Goldstar Cabs Ltd
Peterborough City Council,Children's & Education Services - Education,Non-School Funding,Transport,03/08/2011,397749,1872.6,REVENUE,Goldstar Cabs Ltd
Peterborough City Council,Children's & Education Services - Education,Non-School Funding,Transport,03/08/2011,397750,514.8,REVENUE,Goldstar Cabs Ltd
Peterborough City Council,Children's & Education Services - Education,Non-School Funding,Transport,03/08/2011,397753,1632,REVENUE,Goldstar Cabs Ltd
Peterborough City Council,Children's & Education Services - Education,Non-School Funding,Transport,03/08/2011,397754,1170,REVENUE,Goldstar Cabs Ltd
Peterborough City Council,Children's & Education Services - Children's Social Care,Children Looked After,Supplies and Services,03/08/2011,397755,600,REVENUE,Bluestone New Media Limited
Peterborough City Council,Children's & Education Services - Children's Social Care,Children Looked After,Employees,03/08/2011,397768,537.89,REVENUE,Randstad Employment Bureau Ltd
Peterborough City Council,Children's & Education Services - Children's Social Care,Other Children's & Families Services,Employees,03/08/2011,397773,1658.78,REVENUE,Blue Group International Ltd
Peterborough City Council,More than one Service Area Category,More than one Service Division,Balance Sheet,03/08/2011,397796,8007.71,Balance Sheet,The Prudential Assurance Company Ltd
Peterborough City Council,More than one Service Area Category,More than one Service Division,Balance Sheet,03/08/2011,397801,842961.4,Balance Sheet,Teachers Pensions
Peterborough City Council,More than one Service Area Category,More than one Service Division,Balance Sheet,03/08/2011,397803,4378.34,Balance Sheet,The Prudential Assurance Company Ltd
Peterborough City Council,More than one Service Area Category,More than one Service Division,Balance Sheet,03/08/2011,397804,6161.26,Balance Sheet,Teachers Pensions
Peterborough City Council,Children's & Education Services - Education,Non-School Funding,Employees,03/08/2011,397805,24124.65,REVENUE,Teachers Pensions
Peterborough City Council,Children's & Education Services - Education,Secondary,More than one Expenses Type,05/08/2011,365415,3013.93,REVENUE,IIC by Education (P'boro) Ltd
Peterborough City Council,"Cultural, Environmental and Planning Services","Cemetery, Crematorium & Mortuary Services",Supplies and Services,05/08/2011,387303,792,REVENUE,A1 Fencing
Peterborough City Council,Children's & Education Services - Children's Social Care,Other Children's & Families Services,Employees,05/08/2011,392702,1636.8,REVENUE,Medicare First
Peterborough City Council,Housing Services,Private Sector Housing Renewal,Supplies and Services,05/08/2011,394139,977.5,REVENUE,B S Builders & Carpenters
Peterborough City Council,Central Services to the Public,Elections,Supplies and Services,05/08/2011,394234,1328.44,REVENUE,Triple SSS Limited
Peterborough City Council,Adult Social Care,Other Adult Services,Supplies and Services,05/08/2011,394308,13336.71,REVENUE,Cambs & P'boro NHS Foundation Trust
Peterborough City Council,Adult Social Care,Other Adult Services,Supplies and Services,05/08/2011,394621,8335.71,REVENUE,Cambs & P'boro NHS Foundation Trust
Peterborough City Council,Children's & Education Services - Education,Non-School Funding,Transport,05/08/2011,394779,665,REVENUE,R Kime & Co Ltd
Peterborough City Council,Children's & Education Services - Children's Social Care,Youth Justice,Supplies and Services,05/08/2011,394932,10500,REVENUE,The Froglife Trust
Peterborough City Council,"Highways, Roads & Transport Services",Highways/road (structural),Supplies and Services,05/08/2011,394934,5127.26,REVENUE,Ringway Infrastructure Services
Peterborough City Council,"Highways, Roads & Transport Services",Highways/road (structural),Supplies and Services,05/08/2011,394935,1502.63,REVENUE,Ringway Infrastructure Services
Peterborough City Council,"Highways, Roads & Transport Services",Highways/road (structural),Supplies and Services,05/08/2011,394936,42147.46,REVENUE,Ringway Infrastructure Services
Peterborough City Council,Support Services,Support Services,Employees,05/08/2011,395367,1713.6,REVENUE,Sellick Partnership Group Limited
Peterborough City Council,Support Services,Support Services,Employees,05/08/2011,395368,1764,REVENUE,Sellick Partnership Group Limited
Peterborough City Council,Children's & Education Services - Education,Secondary,Premises,05/08/2011,396664,1840.93,REVENUE,Anglian Water
Peterborough City Council,Children's & Education Services - Education,Secondary,Premises,05/08/2011,396666,1124.63,REVENUE,Eastern Shires Purchasing Organisation
Peterborough City Council,Children's & Education Services - Education,Secondary,Premises,05/08/2011,396669,627.72,REVENUE,Eastern Shires Purchasing Organisation
Peterborough City Council,Children's & Education Services - Education,Secondary,Premises,05/08/2011,396672,1141.66,REVENUE,Southern Electric
Peterborough City Council,Children's & Education Services - Education,Secondary,Premises,05/08/2011,396674,5012.83,REVENUE,Southern Electric
Peterborough City Council,Adult Social Care,Other Adult Services,Supplies and Services,05/08/2011,396756,126158,REVENUE,CRI
Peterborough City Council,"Cultural, Environmental and Planning Services",Economic Development,Supplies and Services,05/08/2011,396939,3093.95,REVENUE,Vivacity Culture and Leisure
Peterborough City Council,Children's & Education Services - Education,Non-School Funding,Third Party Payments,05/08/2011,397052,30750.5,REVENUE,Young Lives
Peterborough City Council,Children's & Education Services - Education,Secondary,Premises,05/08/2011,397235,1242.81,REVENUE,Anglian Water
Peterborough City Council,More than one Service Area Category,More than one Service Division,Equity,05/08/2011,397269,81239.61,"Mixture of Capital, Revenue and/or Balance Sheet",Redacted Personal Data
Peterborough City Council,Children's & Education Services - Children's Social Care,Children Looked After,Supplies and Services - Transfer Payments,05/08/2011,397722,1116,REVENUE,Wordswell Ltd
Peterborough City Council,Support Services,Support Services,Supplies and Services,05/08/2011,397799,942.39,REVENUE,Edenred
Peterborough City Council,Support Services,Support Services,Supplies and Services,05/08/2011,397800,16242.1,REVENUE,Edenred
Peterborough City Council,Support Services,Support Services,Premises,05/08/2011,397841,1129.4,REVENUE,Southern Electric
Peterborough City Council,More than one Service Area Category,More than one Service Division,More than one Expenses Type,05/08/2011,397855,200711.21,REVENUE,Enterprise Managed Services Limited
Peterborough City Council,More than one Service Area Category,More than one Service Division,More than one Expenses Type,05/08/2011,397858,1631.35,REVENUE,Redacted Personal Data
Peterborough City Council,More than one Service Area Category,More than one Service Division,Transport,05/08/2011,397860,715.95,REVENUE,Redacted Personal Data
Peterborough City Council,Children's & Education Services - Children's Social Care,Children Looked After,Transport,05/08/2011,397861,1798.2,REVENUE,Redacted Personal Data
Peterborough City Council,More than one Service Area Category,More than one Service Division,Transport,05/08/2011,397862,1606.5,REVENUE,Redacted Personal Data
Peterborough City Council,Children's & Education Services - Children's Social Care,Children Looked After,Transport,05/08/2011,397863,963,REVENUE,Redacted Personal Data
Peterborough City Council,Children's & Education Services - Children's Social Care,Children Looked After,Transport,05/08/2011,397864,1293.3,REVENUE,Redacted Personal Data
Peterborough City Council,More than one Service Area Category,More than one Service Division,Transport,05/08/2011,397866,915.75,REVENUE,Redacted Personal Data
Peterborough City Council,Children's & Education Services - Children's Social Care,Children Looked After,Transport,05/08/2011,397867,2179.45,REVENUE,Redacted Personal Data
Peterborough City Council,More than one Service Area Category,More than one Service Division,Transport,05/08/2011,397868,1186.25,REVENUE,Redacted Personal Data
Peterborough City Council,More than one Service Area Category,More than one Service Division,More than one Expenses Type,05/08/2011,397874,74295.77,REVENUE,Enterprise Managed Services Limited
Peterborough City Council,More than one Service Area Category,More than one Service Division,More than one Expenses Type,05/08/2011,397876,7926,"Mixture of Capital, Revenue and/or Balance Sheet",AMTEC Consulting Plc
Peterborough City Council,Support Services,Support Services,Supplies and Services,05/08/2011,397878,5670,REVENUE,AMTEC Consulting Plc
Peterborough City Council,Capital,Capital,Capital Pending Update to BS,05/08/2011,397879,37960.8,CAPITAL,AMTEC Consulting Plc
Peterborough City Council,Support Services,Support Services,Supplies and Services,05/08/2011,397882,1648.74,REVENUE,SPSS (UK) Ltd
Peterborough City Council,Children's & Education Services - Children's Social Care,Children Looked After,Supplies and Services,05/08/2011,397885,794.87,REVENUE,Stanley Security Solutions
Peterborough City Council,Capital,Capital,Capital Pending Update to BS,05/08/2011,397886,65269.54,CAPITAL,AMTEC Consulting Plc
Peterborough City Council,Capital,Capital,Capital Pending Update to BS,05/08/2011,397888,344778,CAPITAL,PG Robinson t/a PGR Construction
Peterborough City Council,Capital,Capital,Capital Pending Update to BS,05/08/2011,397890,8204.4,CAPITAL,AMTEC Consulting Plc
Peterborough City Council,Capital,Capital,Capital Pending Update to BS,05/08/2011,397892,3060,CAPITAL,AMTEC Consulting Plc
Peterborough City Council,Support Services,Support Services,Supplies and Services,05/08/2011,397895,17136,REVENUE,AMTEC Consulting Plc
Peterborough City Council,Capital,Capital,Capital Pending Update to BS,05/08/2011,397898,14274,CAPITAL,AMTEC Consulting Plc
Peterborough City Council,"Highways, Roads & Transport Services","Environmental, Safety & Routine Maintenance",Supplies and Services,05/08/2011,397903,539,REVENUE,Telent Technology Services Ltd
Peterborough City Council,"Highways, Roads & Transport Services","Environmental, Safety & Routine Maintenance",Supplies and Services,05/08/2011,397904,2410.04,REVENUE,Telent Technology Services Ltd
Peterborough City Council,Capital,Capital,Capital Pending Update to BS,05/08/2011,397978,7024.82,CAPITAL,O & H Hampton Ltd
Peterborough City Council,Capital,Capital,Capital Pending Update to BS,05/08/2011,397981,18328.2,CAPITAL,Pitney Bowes MapInfo Bus Appl.Ltd
Peterborough City Council,"Cultural, Environmental and Planning Services",Economic Development,Supplies and Services,05/08/2011,397991,19208.26,REVENUE,AMTEC Consulting Plc
Peterborough City Council,Support Services,Support Services,Supplies and Services,05/08/2011,397992,3570,REVENUE,AMTEC Consulting Plc
Peterborough City Council,Support Services,Support Services,Supplies and Services,05/08/2011,397993,2499,REVENUE,AMTEC Consulting Plc
Peterborough City Council,"Highways, Roads & Transport Services","Environmental, Safety & Routine Maintenance",Supplies and Services,05/08/2011,397994,7200,REVENUE,Siemens Plc
Peterborough City Council,Support Services,Support Services,Supplies and Services,05/08/2011,397995,12136.8,REVENUE,AMTEC Consulting Plc
Peterborough City Council,Support Services,Support Services,Supplies and Services,05/08/2011,397996,3969,REVENUE,AMTEC Consulting Plc
Peterborough City Council,Support Services,Support Services,Supplies and Services,05/08/2011,397997,10773,REVENUE,AMTEC Consulting Plc
Peterborough City Council,Support Services,Support Services,Supplies and Services,05/08/2011,397999,55062,REVENUE,AMTEC Consulting Plc
Peterborough City Council,Support Services,Support Services & Management Costs,Supplies and Services,05/08/2011,398000,12960,REVENUE,AMTEC Consulting Plc
Peterborough City Council,Capital,Capital,Capital Pending Update to BS,05/08/2011,398001,39648,CAPITAL,AMTEC Consulting Plc
Peterborough City Council,Support Services,Support Services,Supplies and Services,05/08/2011,398002,14580,REVENUE,AMTEC Consulting Plc
Peterborough City Council,Support Services,Support Services,Supplies and Services,05/08/2011,398003,810,REVENUE,AMTEC Consulting Plc
Peterborough City Council,Capital,Capital,Capital Pending Update to BS,05/08/2011,398004,6480,CAPITAL,AMTEC Consulting Plc
Peterborough City Council,More than one Service Area Category,More than one Service Division,More than one Expenses Type,05/08/2011,398005,10048.42,"Mixture of Capital, Revenue and/or Balance Sheet",AMTEC Consulting Plc
Peterborough City Council,Capital,Capital,Capital Pending Update to BS,05/08/2011,398006,3181.49,CAPITAL,AMTEC Consulting Plc
Peterborough City Council,Support Services,Support Services,Supplies and Services,05/08/2011,398007,14400,REVENUE,AMTEC Consulting Plc
Peterborough City Council,Support Services,Support Services,Supplies and Services,05/08/2011,398008,5313.6,REVENUE,AMTEC Consulting Plc
Peterborough City Council,Support Services,Support Services,Supplies and Services,05/08/2011,398009,33762,REVENUE,AMTEC Consulting Plc
Peterborough City Council,Support Services,Support Services,Supplies and Services,05/08/2011,398010,26802,REVENUE,AMTEC Consulting Plc
Peterborough City Council,Support Services,Support Services,Supplies and Services,05/08/2011,398011,9528,REVENUE,AMTEC Consulting Plc
Peterborough City Council,Support Services,Support Services,Supplies and Services,05/08/2011,398012,15075.6,REVENUE,AMTEC Consulting Plc
Peterborough City Council,Deficit/(Surplus) on Trading Undertakings,Trading Account Surpluses & Deficits,Supplies and Services,05/08/2011,398013,10603.2,REVENUE,AMTEC Consulting Plc
Peterborough City Council,"Cultural, Environmental and Planning Services",Environmental Initiatives,Supplies and Services,05/08/2011,398014,8806.8,REVENUE,AMTEC Consulting Plc
Peterborough City Council,Central Services to the Public,Local Tax,Supplies and Services,05/08/2011,398015,24277.2,REVENUE,AMTEC Consulting Plc
Peterborough City Council,Support Services,Support Services,Supplies and Services,05/08/2011,398016,44819.94,REVENUE,AMTEC Consulting Plc
Peterborough City Council,More than one Service Area Category,More than one Service Division,More than one Expenses Type,05/08/2011,398044,909.44,REVENUE,Peterborough Registrars Office
Peterborough City Council,Support Services,Support Services,Premises,05/08/2011,398045,578.81,REVENUE,Anglian Water
Peterborough City Council,Support Services,Support Services,Premises,05/08/2011,398050,635.58,REVENUE,E.ON Energy
Peterborough City Council,Children's & Education Services - Children's Social Care,Children Looked After,Employees,05/08/2011,398051,4374,REVENUE,Mutual Ventures Ltd
Peterborough City Council,More than one Service Area Category,More than one Service Division,More than one Expenses Type,05/08/2011,398055,3521,"Mixture of Capital, Revenue and/or Balance Sheet",Dolphin Mobility East Midlands Ltd
Peterborough City Council,More than one Service Area Category,More than one Service Division,More than one Expenses Type,05/08/2011,398067,4602,"Mixture of Capital, Revenue and/or Balance Sheet",Warics Ltd
Peterborough City Council,More than one Service Area Category,More than one Service Division,More than one Expenses Type,05/08/2011,398069,2003,"Mixture of Capital, Revenue and/or Balance Sheet",S R K Engineering
Peterborough City Council,Children's & Education Services - Children's Social Care,Family Support Services,Supplies and Services - Transfer Payments,05/08/2011,398070,564.32,REVENUE,Cherry Lodge
Peterborough City Council,Capital,Capital,Capital Pending Update to BS,08/08/2011,376331,-2795.35,CAPITAL,ACIS
Peterborough City Council,Capital,Capital,Capital Pending Update to BS,08/08/2011,376331,-1835.44,CAPITAL,ACIS
Peterborough City Council,Children's & Education Services - Children's Social Care,More than one Service Division,Employees,08/08/2011,390753,2082.12,REVENUE,Care Recruitment UK Ltd
Peterborough City Council,Children's & Education Services - Children's Social Care,More than one Service Division,Employees,08/08/2011,392714,2073,REVENUE,Care Recruitment UK Ltd
Peterborough City Council,Children's & Education Services - Children's Social Care,Other Children's & Families Services,Employees,08/08/2011,394523,1609.5,REVENUE,Care Recruitment UK Ltd
Peterborough City Council,Children's & Education Services - Children's Social Care,Other Children's & Families Services,Employees,08/08/2011,394640,717.31,REVENUE,Blue Group International Ltd
Peterborough City Council,Corporate & Democratic Core,Democratic Representation & Managemetn,Supplies and Services,08/08/2011,394642,1219.32,REVENUE,MCE Corporate Gifts
Peterborough City Council,Children's & Education Services - Education,Non-School Funding,Supplies and Services,08/08/2011,394653,23352.29,REVENUE,Priors Court School
Peterborough City Council,Children's & Education Services - Children's Social Care,Other Children's & Families Services,Third Party Payments,08/08/2011,394657,6493,REVENUE,DRINKSENSE
Peterborough City Council,Children's & Education Services - Children's Social Care,Other Children's & Families Services,Third Party Payments,08/08/2011,394660,15000,REVENUE,DRINKSENSE
Peterborough City Council,Children's & Education Services - Children's Social Care,Children Looked After,Supplies and Services - Transfer Payments,08/08/2011,394670,3620.8,REVENUE,Archway Care Ltd
Peterborough City Council,Children's & Education Services - Children's Social Care,Children Looked After,Supplies and Services - Transfer Payments,08/08/2011,394674,3543.3,REVENUE,Archway Care Ltd
Peterborough City Council,"Highways, Roads & Transport Services",Public Transport,Supplies and Services,08/08/2011,394770,904.4,REVENUE,Veolia Transport UK Ltd
Peterborough City Council,Children's & Education Services - Children's Social Care,Children Looked After,Supplies and Services - Transfer Payments,08/08/2011,395013,11200,REVENUE,Amegreen
Peterborough City Council,"Highways, Roads & Transport Services",Public Transport,Supplies and Services,08/08/2011,395079,15000,REVENUE,First Eastern Counties Buses Ltd
Peterborough City Council,Capital,Capital,Capital Pending Update to BS,08/08/2011,395107,373833.58,CAPITAL,McArdle Sport - TEC Ltd
Peterborough City Council,Children's & Education Services - Children's Social Care,Other Children's & Families Services,Third Party Payments,08/08/2011,395108,5000,REVENUE,Little Miracles Community Group
Peterborough City Council,"Highways, Roads & Transport Services","Environmental, Safety & Routine Maintenance",Supplies and Services,08/08/2011,395208,3707.5,REVENUE,Telent Technology Services Ltd
Peterborough City Council,"Highways, Roads & Transport Services","Environmental, Safety & Routine Maintenance",Supplies and Services,08/08/2011,395209,534.72,REVENUE,Telent Technology Services Ltd
Peterborough City Council,"Cultural, Environmental and Planning Services",Planning Policy,Supplies and Services,08/08/2011,395220,10923.65,REVENUE,Limehouse Software Ltd
Peterborough City Council,Deficit/(Surplus) on Trading Undertakings,Trading Account Surpluses & Deficits,Supplies and Services,08/08/2011,395236,860.65,REVENUE,Carillon Industrial Services Ltd
Peterborough City Council,Housing Services,Homelessness,Employees,08/08/2011,395279,521.93,REVENUE,Anne Corder Recruitment
Peterborough City Council,Housing Services,Homelessness,Employees,08/08/2011,395281,612.88,REVENUE,Anne Corder Recruitment
Peterborough City Council,Housing Services,Homelessness,Employees,08/08/2011,395283,502.16,REVENUE,Anne Corder Recruitment
Peterborough City Council,Capital,Capital,Capital Pending Update to BS,08/08/2011,395293,165792.84,CAPITAL,E N Suiter & Sons Ltd
Peterborough City Council,Capital,Capital,Capital Pending Update to BS,08/08/2011,395294,154457.74,CAPITAL,E N Suiter & Sons Ltd
Peterborough City Council,Children's & Education Services - Children's Social Care,Children Looked After,Supplies and Services - Transfer Payments,08/08/2011,395396,10796,REVENUE,Lincoln House Childrens Services
Peterborough City Council,Capital,Capital,Capital Pending Update to BS,08/08/2011,395435,26767.2,CAPITAL,LDA Design Consulting LLP
Peterborough City Council,Deficit/(Surplus) on Trading Undertakings,Trading Account Surpluses & Deficits,Supplies and Services,08/08/2011,395443,579.36,REVENUE,Safetykleen UK Ltd
Peterborough City Council,Children's & Education Services - Children's Social Care,Other Children's & Families Services,Employees,08/08/2011,395457,1636.8,REVENUE,Medicare First
Peterborough City Council,Children's & Education Services - Children's Social Care,Other Children's & Families Services,Employees,08/08/2011,395460,1627.2,REVENUE,Medicare First
Peterborough City Council,Children's & Education Services - Children's Social Care,Other Children's & Families Services,Employees,08/08/2011,395469,1651.2,REVENUE,Medicare First
Peterborough City Council,Children's & Education Services - Children's Social Care,Other Children's & Families Services,Employees,08/08/2011,395470,1687.2,REVENUE,Medicare First
Peterborough City Council,Children's & Education Services - Education,Non-School Funding,Supplies and Services,08/08/2011,395476,46991.8,REVENUE,Bedford Borough Council
Peterborough City Council,More than one Service Area Category,More than one Service Division,Supplies and Services,08/08/2011,395895,1527.64,REVENUE,TNT Post Midlands Ltd
Peterborough City Council,Children's & Education Services - Children's Social Care,Children Looked After,Supplies and Services,08/08/2011,395954,3545,REVENUE,Peterborough Provider Services
Peterborough City Council,Capital,Capital,Capital Pending Update to BS,08/08/2011,396164,17650.08,CAPITAL,Pinsent Masons
Peterborough City Council,More than one Service Area Category,More than one Service Division,Balance Sheet,08/08/2011,396165,20210.78,Balance Sheet,Peterborough Provider Services
Peterborough City Council,More than one Service Area Category,More than one Service Division,Supplies and Services,08/08/2011,396172,1317.66,REVENUE,TNT Post Midlands Ltd
Peterborough City Council,Children's & Education Services - Children's Social Care,Children Looked After,Premises,08/08/2011,396236,546,REVENUE,Trend Control Systems Ltd
Peterborough City Council,"Highways, Roads & Transport Services","Environmental, Safety & Routine Maintenance",Supplies and Services,08/08/2011,396397,5298.52,REVENUE,Telent Technology Services Ltd
Peterborough City Council,Children's & Education Services - Education,Secondary,Premises,08/08/2011,396713,2750.17,REVENUE,Southern Electric
Peterborough City Council,Children's & Education Services - Education,Secondary,Premises,08/08/2011,396715,6051.99,REVENUE,Southern Electric
Peterborough City Council,Children's & Education Services - Education,Secondary,Premises,08/08/2011,396717,2328.19,REVENUE,Eastern Shires Purchasing Organisation
Peterborough City Council,Support Services,Support Services,Premises,08/08/2011,396835,777.28,REVENUE,Princebuild Limited
Peterborough City Council,"Cultural, Environmental and Planning Services",Waste Collection,Supplies and Services,08/08/2011,396957,35315.48,REVENUE,Organic Recycling Ltd
Peterborough City Council,Children's & Education Services - Education,Secondary,Supplies and Services,08/08/2011,396959,3200,REVENUE,Peterborough Regional College
Peterborough City Council,"Highways, Roads & Transport Services","Environmental, Safety & Routine Maintenance",Supplies and Services,08/08/2011,397206,16798.34,REVENUE,ADC (East Anglia) Ltd
Peterborough City Council,"Highways, Roads & Transport Services","Environmental, Safety & Routine Maintenance",Supplies and Services,08/08/2011,397207,9339.92,REVENUE,ADC (East Anglia) Ltd
Peterborough City Council,"Highways, Roads & Transport Services","Environmental, Safety & Routine Maintenance",Supplies and Services,08/08/2011,397215,12822.1,REVENUE,ADC (East Anglia) Ltd
Peterborough City Council,More than one Service Area Category,More than one Service Division,Balance Sheet,08/08/2011,398217,707.52,Balance Sheet,Redacted Personal Data
Peterborough City Council,More than one Service Area Category,More than one Service Division,Balance Sheet,08/08/2011,398220,812.74,Balance Sheet,Rossendales C B Ltd
Peterborough City Council,Adult Social Care,Adult Social Care,Third Party Payments,08/08/2011,398222,3305909.1,REVENUE,Peterborough PCT
Peterborough City Council,Children's & Education Services - Children's Social Care,Family Support Services,Employees,10/08/2011,384223,624,REVENUE,DCS Joncare Ltd
Peterborough City Council,Housing Services,Housing Benefits,Employees,10/08/2011,384816,1216.8,REVENUE,The Synergy Group
Peterborough City Council,"Cultural, Environmental and Planning Services",Planning Policy,Supplies and Services,10/08/2011,388432,7110,REVENUE,Atkins Limited
Peterborough City Council,More than one Service Area Category,More than one Service Division,Supplies and Services,10/08/2011,388456,857.5,REVENUE,DA Rosalia Hotel
Peterborough City Council,Capital,Capital,Capital Pending Update to BS,10/08/2011,389172,4050,CAPITAL,Haskoning UK Ltd
Peterborough City Council,Children's & Education Services - Children's Social Care,Family Support Services,Supplies and Services,10/08/2011,391112,1750,REVENUE,P C V S
Peterborough City Council,Children's & Education Services - Children's Social Care,Other Children's & Families Services,Employees,10/08/2011,391346,1624.08,REVENUE,Frontline Staffing Ltd
Peterborough City Council,More than one Service Area Category,More than one Service Division,Supplies and Services,10/08/2011,391823,3259.71,REVENUE,Capita Business Services Ltd
Peterborough City Council,"Highways, Roads & Transport Services","Environmental, Safety & Routine Maintenance",Transport,10/08/2011,391932,659.23,REVENUE,Atkins Limited
Peterborough City Council,Children's & Education Services - Children's Social Care,Other Children's & Families Services,Employees,10/08/2011,392207,1163.52,REVENUE,Frontline Staffing Ltd
Peterborough City Council,Children's & Education Services - Children's Social Care,Other Children's & Families Services,Supplies and Services,10/08/2011,392310,1549.08,REVENUE,CINTRA Ltd
Peterborough City Council,Children's & Education Services - Children's Social Care,Family Support Services,Employees,10/08/2011,393123,1085.4,REVENUE,Swim
Peterborough City Council,Children's & Education Services - Children's Social Care,Family Support Services,Employees,10/08/2011,393255,529.2,REVENUE,DCS Joncare Ltd
Peterborough City Council,Housing Services,Private Sector Housing Renewal,Supplies and Services,10/08/2011,393311,1307.32,REVENUE,Northgate Information Solutions
Peterborough City Council,"Cultural, Environmental and Planning Services",Regulatory services,Supplies and Services,10/08/2011,393933,1959.99,REVENUE,Tejaycey Boarding Kennels and Cattery
Peterborough City Council,Children's & Education Services - Children's Social Care,Family Support Services,Employees,10/08/2011,393986,1080,REVENUE,Swim
Peterborough City Council,Children's & Education Services - Children's Social Care,Other Children's & Families Services,Employees,10/08/2011,394042,1239.54,REVENUE,Capita Resourcing Ltd
Peterborough City Council,Adult Social Care,Other Adult Services,Supplies and Services,10/08/2011,394305,500,REVENUE,Cambs & P'boro NHS Foundation Trust
Peterborough City Council,Adult Social Care,Other Adult Services,Supplies and Services,10/08/2011,394310,61833.33,REVENUE,Cambs & P'boro NHS Foundation Trust
Peterborough City Council,Adult Social Care,Other Adult Services,Supplies and Services,10/08/2011,394319,2375.71,REVENUE,Cambs & P'boro NHS Foundation Trust
Peterborough City Council,Support Services,Support Services,Supplies and Services,10/08/2011,394753,617.69,REVENUE,Pitney Bowes Ltd
Peterborough City Council,More than one Service Area Category,More than one Service Division,Supplies and Services,10/08/2011,394879,3254.62,REVENUE,Capita Business Services Ltd
Peterborough City Council,Housing Services,Private Sector Housing Renewal,Supplies and Services,10/08/2011,395297,2472,REVENUE,Casbon Building Services
Peterborough City Council,Support Services,Support Services,Employees,10/08/2011,395402,1530,REVENUE,Sacco Mann Ltd
Peterborough City Council,Support Services,Support Services,Supplies and Services,10/08/2011,395424,24168,REVENUE,Deloitte LLP
Peterborough City Council,Housing Services,Housing Benefits,Employees,10/08/2011,395446,1170,REVENUE,The Synergy Group
Peterborough City Council,Children's & Education Services - Education,Secondary,Supplies and Services,10/08/2011,395472,720,REVENUE,M A Associates
Peterborough City Council,Children's & Education Services - Education,Non-School Funding,Supplies and Services,10/08/2011,395473,4303.4,REVENUE,University College Northampton
Peterborough City Council,"Cultural, Environmental and Planning Services",Culture & Heritage,Employees,10/08/2011,395474,600,REVENUE,The Morton Patnership
Peterborough City Council,Adult Social Care,Other Adult Services,Supplies and Services,10/08/2011,395944,14604,REVENUE,Peterborough PCT
Peterborough City Council,Children's & Education Services - Education,Non-School Funding,Employees,10/08/2011,395952,4200,REVENUE,Worklife Support Limited
Peterborough City Council,Children's & Education Services - Education,Secondary,Supplies and Services,10/08/2011,395960,1020,REVENUE,M A Associates
Peterborough City Council,"Cultural, Environmental and Planning Services",Development Control,Supplies and Services,10/08/2011,395973,1800,REVENUE,Redacted Personal Data
Peterborough City Council,Housing Services,Housing Benefits,Employees,10/08/2011,395975,1755,REVENUE,Badenoch & Clark
Peterborough City Council,"Highways, Roads & Transport Services","Transport planning, policy and strategy",Employees,10/08/2011,396005,1887,REVENUE,Randstad CPE
Peterborough City Council,"Highways, Roads & Transport Services","Transport planning, policy and strategy",Employees,10/08/2011,396007,1584,REVENUE,Randstad CPE
Peterborough City Council,"Highways, Roads & Transport Services","Transport planning, policy and strategy",Employees,10/08/2011,396008,1404,REVENUE,Randstad CPE
Peterborough City Council,"Cultural, Environmental and Planning Services",Economic Development,Employees,10/08/2011,396009,1253.29,REVENUE,Randstad CPE
Peterborough City Council,"Highways, Roads & Transport Services","Transport planning, policy and strategy",Employees,10/08/2011,396011,1854,REVENUE,Hays Specialist Recruitment Ltd
Peterborough City Council,"Cultural, Environmental and Planning Services",Economic Development,Employees,10/08/2011,396012,912.46,REVENUE,Hays Specialist Recruitment Ltd
Peterborough City Council,"Cultural, Environmental and Planning Services",Economic Development,Employees,10/08/2011,396013,1425.6,REVENUE,Hays Specialist Recruitment Ltd
Peterborough City Council,"Cultural, Environmental and Planning Services",Economic Development,Employees,10/08/2011,396014,1825.2,REVENUE,Hays Specialist Recruitment Ltd
Peterborough City Council,"Cultural, Environmental and Planning Services",Economic Development,Employees,10/08/2011,396016,2158.92,REVENUE,Hays Specialist Recruitment Ltd
Peterborough City Council,"Cultural, Environmental and Planning Services",Economic Development,Employees,10/08/2011,396067,1135.83,REVENUE,Redacted Personal Data
Peterborough City Council,"Highways, Roads & Transport Services",Winter Service,Transport,10/08/2011,396117,6919.2,REVENUE,Atkins Limited
Peterborough City Council,"Highways, Roads & Transport Services","Transport planning, policy and strategy",Transport,10/08/2011,396118,511.88,REVENUE,Atkins Limited
Peterborough City Council,Capital,Capital,Capital Pending Update to BS,10/08/2011,396120,2339.22,CAPITAL,Atkins Limited
Peterborough City Council,Capital,Capital,Capital Pending Update to BS,10/08/2011,396121,593.93,CAPITAL,Atkins Limited
Peterborough City Council,"Highways, Roads & Transport Services","Environmental, Safety & Routine Maintenance",Transport,10/08/2011,396127,12111.59,REVENUE,Atkins Limited
Peterborough City Council,Capital,Capital,Capital Pending Update to BS,10/08/2011,396128,7009.1,CAPITAL,Atkins Limited
Peterborough City Council,Capital,Capital,Capital Pending Update to BS,10/08/2011,396136,3168.77,CAPITAL,Atkins Limited
Peterborough City Council,Capital,Capital,Capital Pending Update to BS,10/08/2011,396137,24194.04,CAPITAL,Atkins Limited
Peterborough City Council,"Highways, Roads & Transport Services","Transport planning, policy and strategy",Transport,10/08/2011,396139,8319.84,REVENUE,Atkins Limited
Peterborough City Council,Capital,Capital,Capital Pending Update to BS,10/08/2011,396143,48201.6,CAPITAL,Atkins Limited
Peterborough City Council,Deficit/(Surplus) on Trading Undertakings,Trading Account Surpluses & Deficits,Supplies and Services,10/08/2011,396157,2565,REVENUE,Shield Engineering (Syston) Ltd
Peterborough City Council,Children's & Education Services - Children's Social Care,Support Services & Management Costs,Supplies and Services,10/08/2011,396160,9540,REVENUE,Redacted Personal Data
Peterborough City Council,"Cultural, Environmental and Planning Services","Cemetery, Crematorium & Mortuary Services",Supplies and Services,10/08/2011,396243,750,REVENUE,"Strickland, Mr A M"
Peterborough City Council,Children's & Education Services - Education,Non-School Funding,Supplies and Services,10/08/2011,396257,750,REVENUE,Time to Play Club
Peterborough City Council,Deficit/(Surplus) on Trading Undertakings,Trading Account Surpluses & Deficits,Supplies and Services,10/08/2011,396286,725.84,REVENUE,Schaeffler (UK) Ltd
Peterborough City Council,Housing Services,Housing Benefits,Employees,10/08/2011,396380,1219.85,REVENUE,The Synergy Group
Peterborough City Council,Housing Services,Housing Benefits,Employees,10/08/2011,396382,1310.4,REVENUE,The Synergy Group
Peterborough City Council,Housing Services,Housing Benefits,Employees,10/08/2011,396383,1065.6,REVENUE,The Synergy Group
Peterborough City Council,Children's & Education Services - Children's Social Care,Youth Justice,Employees,10/08/2011,396385,12171.07,REVENUE,Cambs & P'boro NHS Foundation Trust
Peterborough City Council,Children's & Education Services - Children's Social Care,Other Children's & Families Services,Employees,10/08/2011,396407,1248.84,REVENUE,Capita Resourcing Ltd
Peterborough City Council,Children's & Education Services - Children's Social Care,Children Looked After,Employees,10/08/2011,396493,1562.4,REVENUE,Textbook Teachers
Peterborough City Council,Support Services,Support Services,Employees,10/08/2011,396495,1764,REVENUE,Sellick Partnership Group Limited
Peterborough City Council,Housing Services,Private Sector Housing Renewal,Supplies and Services,10/08/2011,396523,833,REVENUE,Fletton Electrics Ltd
Peterborough City Council,Children's & Education Services - Children's Social Care,Support Services & Management Costs,Supplies and Services,10/08/2011,396581,3168,REVENUE,Redacted Personal Data
Peterborough City Council,More than one Service Area Category,More than one Service Division,Balance Sheet,10/08/2011,396584,978.54,Balance Sheet,Rossendales C B Ltd
Peterborough City Council,Children's & Education Services - Education,Non-School Funding,Supplies and Services,10/08/2011,396700,1800,REVENUE,M A Associates
Peterborough City Council,"Highways, Roads & Transport Services",Highways/road (structural),Transport,10/08/2011,396880,3708.46,REVENUE,Atkins Limited
Peterborough City Council,Central Services to the Public,Local Tax,Supplies and Services,10/08/2011,396921,2016,REVENUE,Falcon Property Trust
Peterborough City Council,Support Services,Support Services,Employees,10/08/2011,397065,1026,REVENUE,Ilx Group Plc
Peterborough City Council,Housing Services,Housing Strategy,Supplies and Services,10/08/2011,397134,8400,REVENUE,Hometrack Data Systems (HDS) Ltd
Peterborough City Council,More than one Service Area Category,More than one Service Division,More than one Expenses Type,10/08/2011,397233,50075.14,"Mixture of Capital, Revenue and/or Balance Sheet",Ringway Infrastructure Services
Peterborough City Council,Children's & Education Services - Children's Social Care,Other Children's & Families Services,Employees,10/08/2011,397889,1030,REVENUE,Blue Group International Ltd
Peterborough City Council,"Cultural, Environmental and Planning Services",Tourism,Employees,10/08/2011,397939,554.4,REVENUE,Reed Personnel Services Plc
Peterborough City Council,"Highways, Roads & Transport Services",Traffic management & Road Safety,Supplies and Services,10/08/2011,397966,6930,REVENUE,Trapeze Group (UK) Ltd
Peterborough City Council,Capital,Capital,Capital Pending Update to BS,10/08/2011,397970,196650,CAPITAL,MARS (Construction) Ltd
Peterborough City Council,Capital,Capital,Capital Pending Update to BS,10/08/2011,397971,76269.6,CAPITAL,MARS (Construction) Ltd
Peterborough City Council,Children's & Education Services - Education,Secondary,Employees,10/08/2011,398022,816.24,REVENUE,Mana Resourcing Ltd
Peterborough City Council,More than one Service Area Category,More than one Service Division,More than one Expenses Type,10/08/2011,398057,3904,"Mixture of Capital, Revenue and/or Balance Sheet",Morley Building Services
Peterborough City Council,More than one Service Area Category,More than one Service Division,More than one Expenses Type,10/08/2011,398060,3894,"Mixture of Capital, Revenue and/or Balance Sheet",Morley Building Services
Peterborough City Council,More than one Service Area Category,More than one Service Division,More than one Expenses Type,10/08/2011,398064,10062,"Mixture of Capital, Revenue and/or Balance Sheet",Casbon Building Services
Peterborough City Council,Children's & Education Services - Children's Social Care,Children Looked After,Supplies and Services - Transfer Payments,10/08/2011,398093,3556.01,REVENUE,Foster Care Associates Ltd FCA
Peterborough City Council,Children's & Education Services - Children's Social Care,Children Looked After,Supplies and Services - Transfer Payments,10/08/2011,398101,3556.01,REVENUE,Foster Care Associates Ltd FCA
Peterborough City Council,Children's & Education Services - Children's Social Care,Children Looked After,Supplies and Services - Transfer Payments,10/08/2011,398104,2907.49,REVENUE,Foster Care Associates Ltd FCA
Peterborough City Council,Capital,Capital,Capital Pending Update to BS,10/08/2011,398111,1427203.2,CAPITAL,Kier Eastern
Peterborough City Council,Children's & Education Services - Children's Social Care,Children Looked After,Supplies and Services - Transfer Payments,10/08/2011,398113,3556.01,REVENUE,Foster Care Associates Ltd FCA
Peterborough City Council,Children's & Education Services - Children's Social Care,Children Looked After,Supplies and Services - Transfer Payments,10/08/2011,398114,3556.01,REVENUE,Foster Care Associates Ltd FCA
Peterborough City Council,Capital,Capital,Capital Pending Update to BS,10/08/2011,398120,100876.27,CAPITAL,Burmor Construction
Peterborough City Council,Children's & Education Services - Children's Social Care,Children Looked After,Supplies and Services - Transfer Payments,10/08/2011,398123,3556.01,REVENUE,Foster Care Associates Ltd FCA
Peterborough City Council,Children's & Education Services - Children's Social Care,Children Looked After,Premises,10/08/2011,398146,4800,REVENUE,The K A Wing Group Ltd
Peterborough City Council,Children's & Education Services - Education,Secondary,Employees,10/08/2011,398193,651.12,REVENUE,Mana Resourcing Ltd
Peterborough City Council,Children's & Education Services - Children's Social Care,Children Looked After,Transport,10/08/2011,398231,2152.8,REVENUE,A2B Euro Cars
Peterborough City Council,Children's & Education Services - Children's Social Care,Children Looked After,Transport,10/08/2011,398232,2425.2,REVENUE,A2B Euro Cars
Peterborough City Council,Children's & Education Services - Children's Social Care,Children Looked After,Transport,10/08/2011,398233,2325.6,REVENUE,A2B Euro Cars
Peterborough City Council,Children's & Education Services - Children's Social Care,Children Looked After,Transport,10/08/2011,398234,1944,REVENUE,A2B Euro Cars
Peterborough City Council,Children's & Education Services - Children's Social Care,Children Looked After,Transport,10/08/2011,398235,2047.2,REVENUE,A2B Euro Cars
Peterborough City Council,Children's & Education Services - Children's Social Care,Children Looked After,Transport,10/08/2011,398236,1635.6,REVENUE,A2B Euro Cars
Peterborough City Council,Children's & Education Services - Children's Social Care,Children Looked After,Transport,10/08/2011,398237,715.05,REVENUE,Redacted Personal Data
Peterborough City Council,More than one Service Area Category,More than one Service Division,Transport,10/08/2011,398238,682.2,REVENUE,Redacted Personal Data
Peterborough City Council,More than one Service Area Category,More than one Service Division,Transport,10/08/2011,398239,1613.25,REVENUE,Redacted Personal Data
Peterborough City Council,Children's & Education Services - Children's Social Care,Children Looked After,Transport,10/08/2011,398240,546.75,REVENUE,Redacted Personal Data
Peterborough City Council,Children's & Education Services - Children's Social Care,Children Looked After,Transport,10/08/2011,398241,1595.7,REVENUE,Redacted Personal Data
Peterborough City Council,More than one Service Area Category,More than one Service Division,More than one Expenses Type,10/08/2011,398242,1452.7,REVENUE,Redacted Personal Data
Peterborough City Council,Children's & Education Services - Education,Non-School Funding,Transport,10/08/2011,398254,1540.8,REVENUE,R T Enterprises Ltd T/A Royal Taxis
Peterborough City Council,Children's & Education Services - Education,Non-School Funding,Transport,10/08/2011,398262,927,REVENUE,Goldstar Cabs Ltd
Peterborough City Council,Children's & Education Services - Education,Non-School Funding,Transport,10/08/2011,398263,1594.2,REVENUE,Goldstar Cabs Ltd
Peterborough City Council,Children's & Education Services - Education,Non-School Funding,Transport,10/08/2011,398264,1282.8,REVENUE,Goldstar Cabs Ltd
Peterborough City Council,More than one Service Area Category,More than one Service Division,More than one Expenses Type,10/08/2011,398265,1159.2,REVENUE,Goldstar Cabs Ltd
Peterborough City Council,Children's & Education Services - Education,Non-School Funding,Transport,10/08/2011,398266,1324.8,REVENUE,Goldstar Cabs Ltd
Peterborough City Council,Children's & Education Services - Education,Non-School Funding,Transport,10/08/2011,398267,1075.2,REVENUE,Goldstar Cabs Ltd
Peterborough City Council,Children's & Education Services - Education,Non-School Funding,Transport,10/08/2011,398268,537.6,REVENUE,Goldstar Cabs Ltd
Peterborough City Council,Children's & Education Services - Education,Non-School Funding,Transport,10/08/2011,398269,837.6,REVENUE,Goldstar Cabs Ltd
Peterborough City Council,Children's & Education Services - Education,Non-School Funding,Transport,10/08/2011,398270,1518,REVENUE,King Cabz
Peterborough City Council,Support Services,Support Services,Premises,10/08/2011,398271,816.53,REVENUE,Anglian Water
Peterborough City Council,Support Services,Support Services,Premises,10/08/2011,398272,25325.45,REVENUE,Southern Electric
Peterborough City Council,More than one Service Area Category,More than one Service Division,More than one Expenses Type,10/08/2011,398273,588,"Mixture of Capital, Revenue and/or Balance Sheet",M J Greaves
Peterborough City Council,More than one Service Area Category,More than one Service Division,More than one Expenses Type,10/08/2011,398274,17823.6,"Mixture of Capital, Revenue and/or Balance Sheet",M J Greaves
Peterborough City Council,More than one Service Area Category,More than one Service Division,More than one Expenses Type,10/08/2011,398275,10651.9,"Mixture of Capital, Revenue and/or Balance Sheet",Thermowall Ltd
Peterborough City Council,More than one Service Area Category,More than one Service Division,More than one Expenses Type,10/08/2011,398277,3248.45,"Mixture of Capital, Revenue and/or Balance Sheet",Retrofit UK Ltd
Peterborough City Council,More than one Service Area Category,More than one Service Division,More than one Expenses Type,10/08/2011,398278,19390.93,REVENUE,Peterborough City Council
Peterborough City Council,Capital,Capital,Capital Pending Update to BS,10/08/2011,398279,528967.27,CAPITAL,Geoffrey Osborne Ltd
Peterborough City Council,Capital,Capital,Capital Pending Update to BS,10/08/2011,398280,38006.88,CAPITAL,Geoffrey Osborne Ltd
Peterborough City Council,Capital,Capital,Capital Pending Update to BS,10/08/2011,398281,183125.75,CAPITAL,Geoffrey Osborne Ltd
Peterborough City Council,Capital,Capital,Capital Pending Update to BS,10/08/2011,398282,233133.8,CAPITAL,Geoffrey Osborne Ltd
Peterborough City Council,Children's & Education Services - Education,Secondary,More than one Expenses Type,10/08/2011,398284,4242.94,REVENUE,Redacted Personal Data
Peterborough City Council,Support Services,Support Services,Premises,10/08/2011,398285,14539.09,REVENUE,Southern Electric
Peterborough City Council,Housing Services,Homelessness,Transport,10/08/2011,398286,3000,REVENUE,Peterborough Streets
Peterborough City Council,Housing Services,Homelessness,Third Party Payments,10/08/2011,398287,25000,REVENUE,Peterborough Streets
Peterborough City Council,More than one Service Area Category,More than one Service Division,More than one Expenses Type,10/08/2011,398290,5137,"Mixture of Capital, Revenue and/or Balance Sheet",M M Heating & Plumbing
Peterborough City Council,Support Services,Support Services,Supplies and Services,10/08/2011,398295,1332.6,REVENUE,Browne Jacobson
Peterborough City Council,More than one Service Area Category,More than one Service Division,Supplies and Services,10/08/2011,398314,47826,REVENUE,DSM (GB) Ltd
Peterborough City Council,Capital,Capital,Capital Pending Update to BS,10/08/2011,398318,96613.62,CAPITAL,Cemplas Waterproofing & Concrete Repairs Ltd
Peterborough City Council,Children's & Education Services - Children's Social Care,Children Looked After,Supplies and Services - Transfer Payments,12/08/2011,377382,4220.96,REVENUE,Foster Care Associates Ltd FCA
Peterborough City Council,Children's & Education Services - Children's Social Care,Children Looked After,Supplies and Services - Transfer Payments,12/08/2011,387606,2626.12,REVENUE,Foster Care Associates Ltd FCA
Peterborough City Council,Deficit/(Surplus) on Trading Undertakings,Trading Account Surpluses & Deficits,Transport,12/08/2011,388556,2648.13,REVENUE,Ernest Doe & Sons Ltd
Peterborough City Council,Deficit/(Surplus) on Trading Undertakings,Trading Account Surpluses & Deficits,Transport,12/08/2011,388557,1546.33,REVENUE,Ernest Doe & Sons Ltd
Peterborough City Council,Children's & Education Services - Children's Social Care,Children Looked After,Supplies and Services - Transfer Payments,12/08/2011,393297,1633.92,REVENUE,Foster Care Associates Ltd FCA
Peterborough City Council,Children's & Education Services - Children's Social Care,Children Looked After,Supplies and Services - Transfer Payments,12/08/2011,393298,2813.7,REVENUE,Foster Care Associates Ltd FCA
Peterborough City Council,Children's & Education Services - Children's Social Care,Children Looked After,Supplies and Services - Transfer Payments,12/08/2011,393299,3441.3,REVENUE,Foster Care Associates Ltd FCA
Peterborough City Council,Children's & Education Services - Children's Social Care,Children Looked After,Supplies and Services - Transfer Payments,12/08/2011,394117,20153.57,REVENUE,Oracle Care Ltd (Region 2)
Peterborough City Council,Support Services,Support Services,Supplies and Services,12/08/2011,394251,29153.16,REVENUE,Pinsent Masons
Peterborough City Council,Children's & Education Services - Children's Social Care,Children Looked After,Supplies and Services - Transfer Payments,12/08/2011,396484,3021.43,REVENUE,Partners In Parenting
Peterborough City Council,Children's & Education Services - Children's Social Care,Children Looked After,Supplies and Services - Transfer Payments,12/08/2011,396488,3122.14,REVENUE,Partners In Parenting
Peterborough City Council,Children's & Education Services - Children's Social Care,Children Looked After,Supplies and Services - Transfer Payments,12/08/2011,396494,3122.14,REVENUE,Partners In Parenting
Peterborough City Council,Children's & Education Services - Children's Social Care,Children Looked After,Supplies and Services - Transfer Payments,12/08/2011,396512,2517.86,REVENUE,Partners In Parenting
Peterborough City Council,"Cultural, Environmental and Planning Services",Recreation & Sport,Premises,12/08/2011,397143,628,REVENUE,Hampton Hargate Primary School
Peterborough City Council,Children's & Education Services - Children's Social Care,Children Looked After,Supplies and Services - Transfer Payments,12/08/2011,398109,2907.49,REVENUE,Foster Care Associates Ltd FCA
Peterborough City Council,More than one Service Area Category,More than one Service Division,More than one Expenses Type,12/08/2011,398362,3708,"Mixture of Capital, Revenue and/or Balance Sheet",Morley Building Services
Peterborough City Council,More than one Service Area Category,More than one Service Division,More than one Expenses Type,12/08/2011,398363,3900,"Mixture of Capital, Revenue and/or Balance Sheet",M J Greaves
Peterborough City Council,More than one Service Area Category,More than one Service Division,More than one Expenses Type,12/08/2011,398364,1000,"Mixture of Capital, Revenue and/or Balance Sheet",EMS Stairlifts
Peterborough City Council,Support Services,Support Services,Supplies and Services,12/08/2011,398367,720,REVENUE,Redacted Personal Data
Peterborough City Council,Deficit/(Surplus) on Trading Undertakings,Trading Account Surpluses & Deficits,Supplies and Services,12/08/2011,398368,6169.2,REVENUE,Roythornes
Peterborough City Council,Children's & Education Services - Children's Social Care,Other Children's & Families Services,Employees,12/08/2011,398369,1320,REVENUE,Redacted Personal Data
Peterborough City Council,More than one Service Area Category,More than one Service Division,More than one Expenses Type,12/08/2011,398373,4442,"Mixture of Capital, Revenue and/or Balance Sheet",EMS Stairlifts
Peterborough City Council,More than one Service Area Category,More than one Service Division,More than one Expenses Type,12/08/2011,398374,4268,"Mixture of Capital, Revenue and/or Balance Sheet",Morley Building Services
Peterborough City Council,More than one Service Area Category,More than one Service Division,More than one Expenses Type,12/08/2011,398375,3051,"Mixture of Capital, Revenue and/or Balance Sheet",Morley Building Services
Peterborough City Council,More than one Service Area Category,More than one Service Division,More than one Expenses Type,12/08/2011,398376,3586,"Mixture of Capital, Revenue and/or Balance Sheet",Morley Building Services
Peterborough City Council,More than one Service Area Category,More than one Service Division,More than one Expenses Type,12/08/2011,398377,5231,"Mixture of Capital, Revenue and/or Balance Sheet",M J Greaves
Peterborough City Council,More than one Service Area Category,More than one Service Division,More than one Expenses Type,12/08/2011,398378,4714,"Mixture of Capital, Revenue and/or Balance Sheet",Casbon Building Services
Peterborough City Council,More than one Service Area Category,More than one Service Division,More than one Expenses Type,12/08/2011,398379,4009,"Mixture of Capital, Revenue and/or Balance Sheet",Morley Building Services
Peterborough City Council,More than one Service Area Category,More than one Service Division,More than one Expenses Type,12/08/2011,398380,3738,"Mixture of Capital, Revenue and/or Balance Sheet",Morley Building Services
Peterborough City Council,More than one Service Area Category,More than one Service Division,More than one Expenses Type,12/08/2011,398381,649,"Mixture of Capital, Revenue and/or Balance Sheet",EMS Stairlifts
Peterborough City Council,More than one Service Area Category,More than one Service Division,More than one Expenses Type,12/08/2011,398383,3951.2,"Mixture of Capital, Revenue and/or Balance Sheet",Casbon Building Services
Peterborough City Council,More than one Service Area Category,More than one Service Division,More than one Expenses Type,12/08/2011,398385,2385.2,"Mixture of Capital, Revenue and/or Balance Sheet",Retrofit UK Ltd
Peterborough City Council,More than one Service Area Category,More than one Service Division,More than one Expenses Type,12/08/2011,398401,5274.74,"Mixture of Capital, Revenue and/or Balance Sheet",Retrofit UK Ltd
Peterborough City Council,More than one Service Area Category,More than one Service Division,More than one Expenses Type,12/08/2011,398405,8709.75,"Mixture of Capital, Revenue and/or Balance Sheet",Retrofit UK Ltd
Peterborough City Council,More than one Service Area Category,More than one Service Division,More than one Expenses Type,12/08/2011,398408,4524.87,"Mixture of Capital, Revenue and/or Balance Sheet",Retrofit UK Ltd
Peterborough City Council,More than one Service Area Category,More than one Service Division,More than one Expenses Type,12/08/2011,398411,2528.92,"Mixture of Capital, Revenue and/or Balance Sheet",Bloom & Wake Ltd
Peterborough City Council,More than one Service Area Category,More than one Service Division,More than one Expenses Type,12/08/2011,398416,5089.22,"Mixture of Capital, Revenue and/or Balance Sheet",M J Greaves
Peterborough City Council,Capital,Capital,Capital Pending Update to BS,12/08/2011,398430,525219.6,CAPITAL,PG Robinson t/a PGR Construction
Peterborough City Council,Children's & Education Services - Children's Social Care,Family Support Services,Supplies and Services,12/08/2011,398451,1292.34,REVENUE,Abel Alarm Company Ltd
Peterborough City Council,Children's & Education Services - Children's Social Care,Children Looked After,Supplies and Services,12/08/2011,398500,6248.04,REVENUE,The K A Wing Group Ltd
Peterborough City Council,Housing Services,Private Sector Housing Renewal,Supplies and Services,12/08/2011,398516,565.25,REVENUE,Redacted Personal Data
Peterborough City Council,Central Services to the Public,Local Tax,Supplies and Services,12/08/2011,398544,558.43,REVENUE,Financial Data Management
Peterborough City Council,Central Services to the Public,Local Tax,Supplies and Services,12/08/2011,398557,536.26,REVENUE,Financial Data Management
Peterborough City Council,Central Services to the Public,Local Tax,Supplies and Services,12/08/2011,398560,502.56,REVENUE,Financial Data Management
Peterborough City Council,"Cultural, Environmental and Planning Services",Culture & Heritage,Supplies and Services,12/08/2011,398565,12000,REVENUE,The Tour Series Ltd
Peterborough City Council,"Cultural, Environmental and Planning Services",Culture & Heritage,Supplies and Services,12/08/2011,398568,30000,REVENUE,The Tour Series Ltd
Peterborough City Council,Children's & Education Services - Education,Non-School Funding,Supplies and Services,12/08/2011,398569,2208,REVENUE,PRI Liberator Ltd
Peterborough City Council,Children's & Education Services - Children's Social Care,Children Looked After,Employees,12/08/2011,398600,792,REVENUE,UK Fire Training
Peterborough City Council,"Cultural, Environmental and Planning Services",Economic Development,Supplies and Services,12/08/2011,398607,4460.4,REVENUE,Aqua Environmental Services
Peterborough City Council,Children's & Education Services - Children's Social Care,Children Looked After,Supplies and Services,12/08/2011,398642,1496,REVENUE,Nene Valley Fostering Agency
Peterborough City Council,Children's & Education Services - Children's Social Care,Children Looked After,Supplies and Services,12/08/2011,398646,1496,REVENUE,Nene Valley Fostering Agency
Peterborough City Council,"Cultural, Environmental and Planning Services",Support Services & Management Costs,Third Party Payments,12/08/2011,398651,614790.05,REVENUE,Vivacity Culture and Leisure
Peterborough City Council,Capital,Capital,Capital Pending Update to BS,12/08/2011,398663,32367.38,CAPITAL,L Garfield (Builders) Ltd
Peterborough City Council,Children's & Education Services - Children's Social Care,Family Support Services,Supplies and Services,15/08/2011,389190,584.56,REVENUE,RNID
Peterborough City Council,"Cultural, Environmental and Planning Services",Open Spaces,Premises,15/08/2011,390265,26940,REVENUE,Lightmain Company Ltd
Peterborough City Council,Support Services,Support Services,Supplies and Services,15/08/2011,393427,24409.2,REVENUE,Pinsent Masons
Peterborough City Council,Children's & Education Services - Children's Social Care,Service Strategy,Supplies and Services,15/08/2011,396026,1285.3,REVENUE,Redacted Personal Data
Peterborough City Council,Children's & Education Services - Education,Secondary,Employees,15/08/2011,396055,4521.02,REVENUE,IIC by Education (P'boro) Ltd
Peterborough City Council,Support Services,Support Services,Premises,15/08/2011,396101,5554.2,REVENUE,Baker Perkins Ltd
Peterborough City Council,Children's & Education Services - Children's Social Care,Other Children's & Families Services,Employees,15/08/2011,396134,1609.5,REVENUE,Care Recruitment UK Ltd
Peterborough City Council,Children's & Education Services - Education,Non-School Funding,Supplies and Services,15/08/2011,396142,7680,REVENUE,On Track Education Services Ltd
Peterborough City Council,Children's & Education Services - Education,Non-School Funding,Supplies and Services,15/08/2011,396269,2322,REVENUE,Baby TV
Peterborough City Council,Housing Services,Homelessness,Supplies and Services,15/08/2011,396272,702.55,REVENUE,Euro RSCG Riley Ltd
Peterborough City Council,Children's & Education Services - Education,Primary,Supplies and Services,15/08/2011,396392,3050,REVENUE,Redacted Personal Data
Peterborough City Council,Housing Services,Homelessness,Employees,15/08/2011,396469,632.64,REVENUE,Anne Corder Recruitment
Peterborough City Council,"Highways, Roads & Transport Services",Street Lighting,Supplies and Services,15/08/2011,396501,23720.96,REVENUE,Volker Highways MEWS Ltd
Peterborough City Council,"Highways, Roads & Transport Services",Street Lighting,Supplies and Services,15/08/2011,396507,2317.44,REVENUE,Volker Highways MEWS Ltd
Peterborough City Council,More than one Service Area Category,More than one Service Division,More than one Expenses Type,15/08/2011,396509,38254.73,"Mixture of Capital, Revenue and/or Balance Sheet",Volker Highways MEWS Ltd
Peterborough City Council,More than one Service Area Category,More than one Service Division,More than one Expenses Type,15/08/2011,396510,51827.08,"Mixture of Capital, Revenue and/or Balance Sheet",Volker Highways MEWS Ltd
Peterborough City Council,Capital,Capital,Capital Pending Update to BS,15/08/2011,396511,2316.2,CAPITAL,Volker Highways MEWS Ltd
Peterborough City Council,Children's & Education Services - Children's Social Care,Children Looked After,Supplies and Services - Transfer Payments,15/08/2011,396537,14614.33,REVENUE,Continuum Care & Educ. Group.
Peterborough City Council,"Cultural, Environmental and Planning Services",Planning Policy,Supplies and Services,15/08/2011,396574,1971.73,REVENUE,Cambridgeshire County Council
Peterborough City Council,"Highways, Roads & Transport Services",Public Transport,Supplies and Services,15/08/2011,396696,510.91,REVENUE,Translinc Ltd
Peterborough City Council,Children's & Education Services - Children's Social Care,More than one Service Division,Employees,15/08/2011,396735,1719.24,REVENUE,Care Recruitment UK Ltd
Peterborough City Council,Children's & Education Services - Education,All Schools - apportion across sectors,Supplies and Services,15/08/2011,396739,3400,REVENUE,Cambridgeshire County Council
Peterborough City Council,Children's & Education Services - Children's Social Care,Other Children's & Families Services,Employees,15/08/2011,396741,1687.2,REVENUE,Medicare First
Peterborough City Council,Children's & Education Services - Children's Social Care,Other Children's & Families Services,Employees,15/08/2011,396742,1651.68,REVENUE,Medicare First
Peterborough City Council,Children's & Education Services - Children's Social Care,Support Services & Management Costs,Supplies and Services,15/08/2011,396852,669.15,REVENUE,Redacted Personal Data
Peterborough City Council,Children's & Education Services - Education,Non-School Funding,Transport,15/08/2011,396969,2850,REVENUE,Grettons Coaches
Peterborough City Council,Children's & Education Services - Education,Non-School Funding,Transport,15/08/2011,396970,3075,REVENUE,Grettons Coaches
Peterborough City Council,Children's & Education Services - Education,Non-School Funding,Transport,15/08/2011,396971,2775,REVENUE,Grettons Coaches
Peterborough City Council,Children's & Education Services - Education,Non-School Funding,Transport,15/08/2011,396972,2760,REVENUE,Grettons Coaches
Peterborough City Council,Children's & Education Services - Education,Non-School Funding,Transport,15/08/2011,396973,2760,REVENUE,Grettons Coaches
Peterborough City Council,Children's & Education Services - Education,Non-School Funding,Transport,15/08/2011,396974,2590,REVENUE,Grettons Coaches
Peterborough City Council,Children's & Education Services - Education,Non-School Funding,Transport,15/08/2011,396975,2775,REVENUE,Grettons Coaches
Peterborough City Council,Children's & Education Services - Education,Non-School Funding,Transport,15/08/2011,396976,3152,REVENUE,Grettons Coaches
Peterborough City Council,Children's & Education Services - Education,Non-School Funding,Transport,15/08/2011,396978,1152,REVENUE,Ash School Transport
Peterborough City Council,Children's & Education Services - Education,Non-School Funding,Transport,15/08/2011,396979,1056,REVENUE,Ash School Transport
Peterborough City Council,Children's & Education Services - Education,Non-School Funding,Transport,15/08/2011,396981,1152,REVENUE,Ash School Transport
Peterborough City Council,Children's & Education Services - Education,Non-School Funding,Transport,15/08/2011,396982,625.5,REVENUE,Ash School Transport
Peterborough City Council,Children's & Education Services - Education,Non-School Funding,Transport,15/08/2011,396983,1248,REVENUE,Ash School Transport
Peterborough City Council,Children's & Education Services - Education,Non-School Funding,Transport,15/08/2011,396984,510,REVENUE,Ash School Transport
Peterborough City Council,Children's & Education Services - Education,Non-School Funding,Transport,15/08/2011,396986,2240,REVENUE,Eames Minibuses
Peterborough City Council,Children's & Education Services - Education,Non-School Funding,Transport,15/08/2011,396987,1840,REVENUE,Eames Minibuses
Peterborough City Council,Children's & Education Services - Education,Non-School Funding,Transport,15/08/2011,396988,1176,REVENUE,Orton Comm. Transport Assoc. Ltd
Peterborough City Council,Children's & Education Services - Education,Non-School Funding,Transport,15/08/2011,396989,1504,REVENUE,Orton Comm. Transport Assoc. Ltd
Peterborough City Council,Children's & Education Services - Education,Non-School Funding,Transport,15/08/2011,396990,1600,REVENUE,Orton Comm. Transport Assoc. Ltd
Peterborough City Council,Children's & Education Services - Education,Non-School Funding,Transport,15/08/2011,396991,1520,REVENUE,Orton Comm. Transport Assoc. Ltd
Peterborough City Council,Children's & Education Services - Children's Social Care,Children Looked After,Premises,15/08/2011,397159,562.74,REVENUE,Peterborough Engraving & City Sign Services
Peterborough City Council,More than one Service Area Category,More than one Service Division,Supplies and Services,15/08/2011,397210,510.15,REVENUE,TNT Post Midlands Ltd
Peterborough City Council,More than one Service Area Category,More than one Service Division,Supplies and Services,15/08/2011,397212,2614.49,REVENUE,TNT Post Midlands Ltd
Peterborough City Council,Children's & Education Services - Education,Non-School Funding,Transport,15/08/2011,397287,1270.8,REVENUE,Peterborough Cars
Peterborough City Council,Children's & Education Services - Education,Non-School Funding,Transport,15/08/2011,397288,990,REVENUE,Peterborough Cars
Peterborough City Council,Children's & Education Services - Education,Non-School Funding,Transport,15/08/2011,397289,1555.2,REVENUE,Peterborough Cars
Peterborough City Council,Children's & Education Services - Education,Non-School Funding,Transport,15/08/2011,397292,608.12,REVENUE,Peterborough Cars
Peterborough City Council,More than one Service Area Category,More than one Service Division,Transport,15/08/2011,397293,1536,REVENUE,Peterborough Cars
Peterborough City Council,Children's & Education Services - Education,Non-School Funding,Transport,15/08/2011,397294,1526.4,REVENUE,Peterborough Cars
Peterborough City Council,Children's & Education Services - Education,Non-School Funding,Transport,15/08/2011,397296,1087.2,REVENUE,Peterborough Cars
Peterborough City Council,Children's & Education Services - Education,Non-School Funding,Transport,15/08/2011,397297,899.1,REVENUE,Peterborough Cars
Peterborough City Council,Children's & Education Services - Education,Non-School Funding,Transport,15/08/2011,397298,1151.04,REVENUE,Peterborough Cars
Peterborough City Council,Children's & Education Services - Education,Non-School Funding,Transport,15/08/2011,397300,1151.04,REVENUE,Peterborough Cars
Peterborough City Council,Deficit/(Surplus) on Trading Undertakings,Trading Account Surpluses & Deficits,Supplies and Services,15/08/2011,397303,2847.35,REVENUE,Princebuild Limited
Peterborough City Council,More than one Service Area Category,More than one Service Division,More than one Expenses Type,15/08/2011,398315,294004.68,"Mixture of Capital, Revenue and/or Balance Sheet",Ringway Infrastructure Services
Peterborough City Council,Children's & Education Services - Education,Non-School Funding,Supplies and Services,15/08/2011,398422,780,REVENUE,Rise & Shine Day Nursery
Peterborough City Council,Children's & Education Services - Education,Secondary,Premises,15/08/2011,398447,1554.4,REVENUE,Eastern Shires Purchasing Organisation
Peterborough City Council,Children's & Education Services - Children's Social Care,Children Looked After,Supplies and Services,15/08/2011,398503,2546.26,REVENUE,Quality Solicitors Truemans
Peterborough City Council,Children's & Education Services - Education,Primary,More than one Expenses Type,15/08/2011,398563,1143,REVENUE,Kingsgate Trading Ltd
Peterborough City Council,"Cultural, Environmental and Planning Services",Support Services & Management Costs,Third Party Payments,15/08/2011,398656,26140.87,REVENUE,Vivacity Culture and Leisure
Peterborough City Council,Children's & Education Services - Education,Non-School Funding,Supplies and Services,15/08/2011,398692,634.85,REVENUE,Anna-Ca-Soo Day Nursery
Peterborough City Council,More than one Service Area Category,More than one Service Division,Balance Sheet,15/08/2011,398697,2350,Balance Sheet,Brearleys Solicitors
Peterborough City Council,Children's & Education Services - Education,Non-School Funding,Supplies and Services,15/08/2011,398723,845,REVENUE,Home from Home
Peterborough City Council,Children's & Education Services - Education,Non-School Funding,Supplies and Services,15/08/2011,398730,975,REVENUE,Home from Home
Peterborough City Council,More than one Service Area Category,More than one Service Division,More than one Expenses Type,15/08/2011,398731,4690.8,"Mixture of Capital, Revenue and/or Balance Sheet",FAM Building Contractors LLP
Peterborough City Council,Children's & Education Services - Education,Non-School Funding,Supplies and Services,15/08/2011,398739,780,REVENUE,Flying Start Pre-School & Day Care Centre
Peterborough City Council,Children's & Education Services - Education,Non-School Funding,Supplies and Services,15/08/2011,398787,726,REVENUE,Kiddi Caru Day Nursery
Peterborough City Council,Children's & Education Services - Education,Non-School Funding,Transport,15/08/2011,398791,2556,REVENUE,Woodgrange Travel Ltd t/a DiamondCars
Peterborough City Council,Children's & Education Services - Education,Non-School Funding,Transport,15/08/2011,398792,828,REVENUE,Woodgrange Travel Ltd t/a DiamondCars
Peterborough City Council,More than one Service Area Category,More than one Service Division,Transport,15/08/2011,398793,756,REVENUE,Woodgrange Travel Ltd t/a DiamondCars
Peterborough City Council,Children's & Education Services - Education,Non-School Funding,Transport,15/08/2011,398794,2491.8,REVENUE,Woodgrange Travel Ltd t/a DiamondCars
Peterborough City Council,Children's & Education Services - Education,Non-School Funding,Transport,15/08/2011,398795,1551.6,REVENUE,Woodgrange Travel Ltd t/a DiamondCars
Peterborough City Council,Children's & Education Services - Education,Non-School Funding,Transport,15/08/2011,398796,1206,REVENUE,Woodgrange Travel Ltd t/a DiamondCars
Peterborough City Council,Children's & Education Services - Education,Non-School Funding,Transport,15/08/2011,398798,2860.8,REVENUE,Woodgrange Travel Ltd t/a DiamondCars
Peterborough City Council,Children's & Education Services - Education,Non-School Funding,Transport,15/08/2011,398801,2595,REVENUE,Newborough Coaches Ltd
Peterborough City Council,Children's & Education Services - Education,Non-School Funding,Transport,15/08/2011,398802,2460,REVENUE,Newborough Coaches Ltd
Peterborough City Council,More than one Service Area Category,More than one Service Division,Transport,15/08/2011,398803,2970,REVENUE,Newborough Coaches Ltd
Peterborough City Council,Children's & Education Services - Education,Non-School Funding,Transport,15/08/2011,398804,2919.28,REVENUE,Newborough Coaches Ltd
Peterborough City Council,Children's & Education Services - Education,Non-School Funding,Transport,15/08/2011,398805,3456,REVENUE,Newborough Coaches Ltd
Peterborough City Council,Children's & Education Services - Education,Non-School Funding,Transport,15/08/2011,398806,873.6,REVENUE,Peterborough Cars
Peterborough City Council,Children's & Education Services - Education,Non-School Funding,Transport,15/08/2011,398808,1728,REVENUE,Woodgrange Travel Ltd t/a DiamondCars
Peterborough City Council,Children's & Education Services - Education,Non-School Funding,Transport,15/08/2011,398809,1588.8,REVENUE,Woodgrange Travel Ltd t/a DiamondCars
Peterborough City Council,Children's & Education Services - Education,Non-School Funding,Transport,15/08/2011,398810,2281.12,REVENUE,Translinc Ltd
Peterborough City Council,Children's & Education Services - Education,Non-School Funding,Transport,15/08/2011,398811,1912.48,REVENUE,Translinc Ltd
Peterborough City Council,Children's & Education Services - Education,Non-School Funding,Transport,15/08/2011,398812,2028.96,REVENUE,Translinc Ltd
Peterborough City Council,Children's & Education Services - Education,Non-School Funding,Transport,15/08/2011,398813,1854.6,REVENUE,Translinc Ltd
Peterborough City Council,Children's & Education Services - Education,Non-School Funding,Transport,15/08/2011,398814,2872,REVENUE,Shaws Coaches
Peterborough City Council,Children's & Education Services - Children's Social Care,Children Looked After,Supplies and Services,15/08/2011,398827,1562.11,REVENUE,Ofsted
Peterborough City Council,Children's & Education Services - Children's Social Care,Children Looked After,Supplies and Services,15/08/2011,398829,2760.01,REVENUE,Ofsted
Peterborough City Council,More than one Service Area Category,More than one Service Division,More than one Expenses Type,15/08/2011,398895,-3521,"Mixture of Capital, Revenue and/or Balance Sheet",Dolphin Mobility East Midlands Ltd
Peterborough City Council,More than one Service Area Category,More than one Service Division,More than one Expenses Type,17/08/2011,373948,564.84,REVENUE,Terrier Management Services
Peterborough City Council,"Cultural, Environmental and Planning Services",Development Control,Fees and Charges,17/08/2011,385602,750,REVENUE,Cornwall Light and Power Co Ltd
Peterborough City Council,Children's & Education Services - Children's Social Care,Family Support Services,More than one Expenses Type,17/08/2011,387698,2449.58,REVENUE,PAM Recruitment Ltd
Peterborough City Council,Children's & Education Services - Children's Social Care,Other Children's & Families Services,Employees,17/08/2011,388660,1308.96,REVENUE,Frontline Staffing Ltd
Peterborough City Council,Housing Services,Housing Benefits,Employees,17/08/2011,390736,1579.5,REVENUE,Badenoch & Clark
Peterborough City Council,Housing Services,Housing Benefits,Employees,17/08/2011,391867,1755,REVENUE,Badenoch & Clark
Peterborough City Council,Children's & Education Services - Children's Social Care,Family Support Services,Employees,17/08/2011,392206,1324.8,REVENUE,The Bambach Saddle Seat Europe Ltd
Peterborough City Council,Children's & Education Services - Children's Social Care,Other Children's & Families Services,Employees,17/08/2011,394603,1042.32,REVENUE,Frontline Staffing Ltd
Peterborough City Council,Children's & Education Services - Education,Non-School Funding,Supplies and Services,17/08/2011,396188,8750,REVENUE,Newark Play Association Ltd
Peterborough City Council,Capital,Capital,Capital Pending Update to BS,17/08/2011,396250,1196.22,CAPITAL,British Telecom PLC
Peterborough City Council,Children's & Education Services - Children's Social Care,Service Strategy,Supplies and Services,17/08/2011,396260,828.75,REVENUE,Redacted Personal Data
Peterborough City Council,Children's & Education Services - Education,Primary,Supplies and Services,17/08/2011,396378,2250,REVENUE,TS & SC Snitch
Peterborough City Council,Central Services to the Public,Local Tax,Supplies and Services,17/08/2011,396408,1804.8,REVENUE,The Synergy Group
Peterborough City Council,Housing Services,Housing Benefits,Employees,17/08/2011,396413,1176.53,REVENUE,The Synergy Group
Peterborough City Council,Housing Services,Housing Benefits,Employees,17/08/2011,396420,1544.4,REVENUE,The Synergy Group
Peterborough City Council,Housing Services,Housing Benefits,Employees,17/08/2011,396421,1212.62,REVENUE,The Synergy Group
Peterborough City Council,Housing Services,Housing Benefits,Employees,17/08/2011,396423,1170,REVENUE,The Synergy Group
Peterborough City Council,"Cultural, Environmental and Planning Services",Waste Collection,Supplies and Services,17/08/2011,396432,10872.53,REVENUE,H W Martin Waste Ltd
Peterborough City Council,Deficit/(Surplus) on Trading Undertakings,Trading Account Surpluses & Deficits,Supplies and Services,17/08/2011,396533,870,REVENUE,Rawlinsons
Peterborough City Council,Housing Services,Housing Benefits,Employees,17/08/2011,396534,1219.85,REVENUE,The Synergy Group
Peterborough City Council,"Highways, Roads & Transport Services","Transport planning, policy and strategy",Transport,17/08/2011,396535,517.19,REVENUE,Burnt Tree Group
Peterborough City Council,Children's & Education Services - Education,Non-School Funding,Supplies and Services,17/08/2011,396540,1876.08,REVENUE,Bull & Co Ltd
Peterborough City Council,Children's & Education Services - Children's Social Care,Family Support Services,Supplies and Services,17/08/2011,396665,1449.6,REVENUE,Quadrant Security Group Ltd
Peterborough City Council,Central Services to the Public,Local Tax,Supplies and Services,17/08/2011,396677,569.95,REVENUE,Financial Data Management
Peterborough City Council,Deficit/(Surplus) on Trading Undertakings,Trading Account Surpluses & Deficits,Supplies and Services,17/08/2011,396699,11211.84,REVENUE,Godric Engineering Ltd
Peterborough City Council,Support Services,Support Services,Employees,17/08/2011,396729,1326.67,REVENUE,Venn Group Ltd
Peterborough City Council,Children's & Education Services - Education,Primary,Employees,17/08/2011,396730,2000,REVENUE,Institute of Education
Peterborough City Council,Children's & Education Services - Children's Social Care,Other Children's & Families Services,Employees,17/08/2011,396731,1609.5,REVENUE,Care Recruitment UK Ltd
Peterborough City Council,"Highways, Roads & Transport Services",Street Lighting,Supplies and Services,17/08/2011,396732,3263.5,REVENUE,Volker Highways MEWS Ltd
Peterborough City Council,Deficit/(Surplus) on Trading Undertakings,Trading Account Surpluses & Deficits,Supplies and Services,17/08/2011,396740,1402.2,REVENUE,Godric Engineering Ltd
Peterborough City Council,"Cultural, Environmental and Planning Services",Flood Defence & Land Drainage,Supplies and Services,17/08/2011,396747,13035.6,REVENUE,L A Jackson
Peterborough City Council,Capital,Capital,Capital Pending Update to BS,17/08/2011,396757,34800,CAPITAL,Telensa Limited
Peterborough City Council,Children's & Education Services - Education,Non-School Funding,Supplies and Services,17/08/2011,396790,19503,REVENUE,Lovell's Hall
Peterborough City Council,"Cultural, Environmental and Planning Services",Economic Development,Employees,17/08/2011,396803,1458,REVENUE,Hays Specialist Recruitment Ltd
Peterborough City Council,"Cultural, Environmental and Planning Services",Economic Development,Employees,17/08/2011,396808,1425.6,REVENUE,Hays Specialist Recruitment Ltd
Peterborough City Council,"Cultural, Environmental and Planning Services",Economic Development,Employees,17/08/2011,396812,785.41,REVENUE,Hays Specialist Recruitment Ltd
Peterborough City Council,Deficit/(Surplus) on Trading Undertakings,Trading Account Surpluses & Deficits,Premises,17/08/2011,396836,6109.16,REVENUE,T Clarke East Limited
Peterborough City Council,"Cultural, Environmental and Planning Services",Economic Development,Employees,17/08/2011,396841,1332,REVENUE,Hays Specialist Recruitment Ltd
Peterborough City Council,"Cultural, Environmental and Planning Services",Economic Development,Employees,17/08/2011,396845,1332,REVENUE,Hays Specialist Recruitment Ltd
Peterborough City Council,"Cultural, Environmental and Planning Services",Economic Development,Employees,17/08/2011,396848,2014.99,REVENUE,Hays Specialist Recruitment Ltd
